{"text_format":"1","workbook":"xlsx","n_sheets":3,"sheets":["Sheet1","Sheet2","Sheet3"],"not_rendered":{"charts":0,"images":0,"macros":1,"external_links":0,"defined_names":1,"comments":0,"pivot_tables":0},"unopened":[],"bounds":{"document_bytes":16777216,"sheet_cells":100000,"rows_first":2000,"rows_last":500,"rows_between":2000,"halvings":0,"cell_chars":16384,"cell_head_chars":4096},"cells_cut":0,"cells_raw":0,"read":"whole","date_system":"1900"}

{"sheet":"Sheet1","index":0,"n_rows":1000,"n_cols":37,"rows_kept":1000,"cut":false,"hidden":false,"merged":[[0,13,0,15]]}
[{"$f":"IF(B1=\"\",\"\",1)","v":""},null,null,{"$f":"MAX(A:A)","v":4},null,null,null,null,null,{"$f":"IFERROR(VLOOKUP(H1,A:B,2,FALSE),\"\")","v":""},{"$f":"IF(J1=\"\",\"\",\"-\")","v":""},{"$f":"IFERROR(VLOOKUP(I1,A:B,2,FALSE),\"\")","v":""},null,"rezlutat",null,null,null,"tip",null,null,null,"rang","klub","broj utakmica","dao golova","primio golova","gol razlika","bodovi","kriterij",null,"pozicija","klub","Odigranih utakmica","dao golova","primio golova","gol razlika","bodovi"]
[{"$f":"IF(B2=\"\",\"\",MAX(A$1:A1)+1)","v":1},"Zvezdan",null,{"$f":"2*COMBIN(D1,2)","v":12},null,1.4017641544342041E-2,{"$f":"RANK($F$2,$F$2:$F$7)","v":6},1,2,"Zvezdan",{"$f":"IF(J2=\"\",\"\",\"-\")","v":"-"},"Dejan",null,0,{"$f":"IF(J2=\"\",\"\",\"-\")","v":"-"},6,null,{"$f":"IF(N2=\"\",\"\",IF(N2>P2,1,IF(N2<P2,2,\"x\")))","v":2},{"$f":"IF(J2=\"\",\"\",(IF(R2=1,3,IF(R2=\"x\",1,0))))","v":0},{"$f":"IF(J2=\"\",\"\",IF(R2=2,3,IF(R2=\"x\",1,0)))","v":3},{"$f":"IF(R2=\"\",\"\",1)","v":1},{"$f":"IFERROR(RANK(AC2,$AC$2:$AC$21),\"\")","v":""},{"$f":"IF(B1=\"\",\"  \",B1)","v":"  "},{"$f":"SUMIFS(U:U,J:J,W2)+SUMIFS(U:U,L:L,W2)","v":0},{"$f":"SUMIF(J:J,W2,N$1:N$1000)+SUMIF(L:L,W2,P$1:P$1000)","v":0},{"$f":"SUMIF(J:J,W2,P$1:P$1000)+SUMIF(L:L,W2,N$1:N$1000)","v":0},{"$f":"Y2-Z2","v":0},{"$f":"SUMIF(J:J,W2,S:S)+SUMIF(L:L,W2,T:T)","v":0},{"$f":"IF(W2=\"  \",\"\",AB2+AA2/100+Y2/1000+MATCH(W2,B:B,0)/10000000)","v":""},null,1,{"$f":"IFERROR(VLOOKUP($AE2,$V$2:$AC$21,2,FALSE),\"\")","v":"Darko"},{"$f":"IFERROR(IF(AE2=\"\",\"\",VLOOKUP($AE2,$V$2:$AC$21,3,FALSE)),\"\")","v":3},{"$f":"IFERROR(IF(AE2=\"\",\"\",VLOOKUP($AE2,$V$2:$AC$21,4,FALSE)),\"\")","v":11},{"$f":"IFERROR(IF(AE2=\"\",\"\",VLOOKUP($AE2,$V$2:$AC$21,5,FALSE)),\"\")","v":6},{"$f":"IFERROR(IF(AE2=\"\",\"\",VLOOKUP($AE2,$V$2:$AC$21,6,FALSE)),\"\")","v":5},{"$f":"IFERROR(IF(AE2=\"\",\"\",VLOOKUP($AE2,$V$2:$AC$21,7,FALSE)),\"\")","v":9}]
[{"$f":"IF(B3=\"\",\"\",MAX(A$1:A2)+1)","v":2},"Dejan",null,null,null,0.76072359085083008,{"$f":"RANK($F$3,$F$2:$F$7)","v":2},1,3,"Zvezdan","-","Ivan",null,4,"-",2,null,{"$f":"IF(N3=\"\",\"\",IF(N3>P3,1,IF(N3<P3,2,\"x\")))","v":1},{"$f":"IF(J3=\"\",\"\",(IF(R3=1,3,IF(R3=\"x\",1,0))))","v":3},{"$f":"IF(J3=\"\",\"\",IF(R3=2,3,IF(R3=\"x\",1,0)))","v":0},{"$f":"IF(R3=\"\",\"\",1)","v":1},{"$f":"IFERROR(RANK(AC3,$AC$2:$AC$21),\"\")","v":3},{"$f":"IF(B2=\"\",\"  \",B2)","v":"Zvezdan"},{"$f":"SUMIFS(U:U,J:J,W3)+SUMIFS(U:U,L:L,W3)","v":3},{"$f":"SUMIF(J:J,W3,N$1:N$1000)+SUMIF(L:L,W3,P$1:P$1000)","v":6},{"$f":"SUMIF(J:J,W3,P$1:P$1000)+SUMIF(L:L,W3,N$1:N$1000)","v":11},{"$f":"Y3-Z3","v":-5},{"$f":"SUMIF(J:J,W3,S:S)+SUMIF(L:L,W3,T:T)","v":3},2.9560002000000001,null,{"$f":"IFERROR(IF(AE2+1<=MAX(A:A),AE2+1,\"\"),\"\")","v":2},{"$f":"IFERROR(VLOOKUP($AE3,$V$2:$AC$21,2,FALSE),\"\")","v":"Dejan"},{"$f":"IFERROR(IF(AE3=\"\",\"\",VLOOKUP($AE3,$V$2:$AC$21,3,FALSE)),\"\")","v":3},{"$f":"IFERROR(IF(AE3=\"\",\"\",VLOOKUP($AE3,$V$2:$AC$21,4,FALSE)),\"\")","v":14},{"$f":"IFERROR(IF(AE3=\"\",\"\",VLOOKUP($AE3,$V$2:$AC$21,5,FALSE)),\"\")","v":3},{"$f":"IFERROR(IF(AE3=\"\",\"\",VLOOKUP($AE3,$V$2:$AC$21,6,FALSE)),\"\")","v":11},{"$f":"IFERROR(IF(AE3=\"\",\"\",VLOOKUP($AE3,$V$2:$AC$21,7,FALSE)),\"\")","v":6}]
[{"$f":"IF(B4=\"\",\"\",MAX(A$1:A3)+1)","v":""},null,null,null,null,0.81449002027511597,{"$f":"RANK($F$4,$F$2:$F$7)","v":1},1,4,"Zvezdan","-","Darko",null,2,"-",3,null,2,0,3,1,2,"Dejan",{"$f":"SUMIFS(U:U,J:J,W4)+SUMIFS(U:U,L:L,W4)","v":3},14,3,11,6,6.1240003000000005,null,3,"Zvezdan",3,6,11,-5,3]
[{"$f":"IF(B5=\"\",\"\",MAX(A$1:A4)+1)","v":3},"Ivan",null,"Upisi parove",null,0.7090378999710083,{"$f":"RANK($F$5,$F$2:$F$7)","v":3},2,3,"Dejan","-","Ivan",null,6,"-",0,null,1,3,0,1,"","  ",0,0,0,0,0,"",null,4,"Ivan",3,4,15,-11,0]
[{"$f":"IF(B6=\"\",\"\",MAX(A$1:A5)+1)","v":""},null,null,null,null,4.5352756977081299E-2,{"$f":"RANK($F$6,$F$2:$F$7)","v":5},2,4,"Dejan","-","Darko",null,2,"-",3,null,2,0,3,1,4,"Ivan",3,4,15,-11,0,-0.1059995,null,"","  ","","","","",""]
[{"$f":"IF(B7=\"\",\"\",MAX(A$1:A6)+1)","v":4},"Darko",null,null,null,0.4140326976776123,{"$f":"RANK($F$7,$F$2:$F$7)","v":4},3,4,"Ivan","-","Darko",null,2,"-",5,null,2,0,3,1,"",{"$f":"IF(B6=\"\",\"  \",B6)","v":"  "},0,0,0,0,0,"",null,"","  ","","","","",""]
[{"$f":"IF(B8=\"\",\"\",MAX(A$1:A7)+1)","v":""},null,null,null,null,null,null,null,null,"","","",null,7,"",1,null,1,"","",1,1,{"$f":"IF(B7=\"\",\"  \",B7)","v":"Darko"},3,11,6,5,9,9.0610006999999992,null,"",{"$f":"IFERROR(VLOOKUP($AE8,$V$2:$AC$21,2,FALSE),\"\")","v":"  "},"","","","",""]
[{"$f":"IF(B9=\"\",\"\",MAX(A$1:A8)+1)","v":""},null,null,null,null,null,null,null,null,"","","",null,1,"",2,null,2,"","",1,"","  ",0,0,0,0,0,"",null,"","  ","","","","",""]
[{"$f":"IF(B10=\"\",\"\",MAX(A$1:A9)+1)","v":""},null,null,null,null,null,null,null,null,"","","",null,5,"",1,null,1,"","",1,"","  ",0,0,0,0,0,"",null,"","  ","","","","",""]
[{"$f":"IF(B11=\"\",\"\",MAX(A$1:A10)+1)","v":""},null,null,null,null,null,null,null,null,"","","",null,1,"",4,null,2,"","",1,"","  ",0,0,0,0,0,"",null,"","  ","","","","",""]
[{"$f":"IF(B12=\"\",\"\",MAX(A$1:A11)+1)","v":""},null,null,null,null,null,null,null,null,"","","",null,3,{"$f":"IF(J12=\"\",\"\",\"-\")","v":""},3,null,{"$f":"IF(N12=\"\",\"\",IF(N12>P12,1,IF(N12<P12,2,\"x\")))","v":"x"},"","",1,"","  ",0,0,0,0,0,"",null,"","  ","","","","",""]
[{"$f":"IF(B13=\"\",\"\",MAX(A$1:A12)+1)","v":""},null,null,null,null,null,null,null,null,"","","",null,1,"",4,null,2,"","",1,"","  ",0,0,0,0,0,"",null,"","  ","","","","",""]
[{"$f":"IF(B14=\"\",\"\",MAX(A$1:A13)+1)","v":""},null,null,null,null,null,null,null,null,"","","",null,null,"",null,null,"","","","","","  ",0,0,0,0,0,"",null,"","  ","","","","",""]
[{"$f":"IF(B15=\"\",\"\",MAX(A$1:A14)+1)","v":""},null,null,null,null,null,null,null,null,"","","",null,null,"",null,null,"","","","","","  ",0,0,0,0,0,"",null,"","  ","","","","",""]
[{"$f":"IF(B16=\"\",\"\",MAX(A$1:A15)+1)","v":""},null,null,null,null,null,null,null,null,"","","",null,null,"",null,null,"","","","","","  ",0,0,0,0,0,"",null,"","  ","","","","",""]
[{"$f":"IF(B17=\"\",\"\",MAX(A$1:A16)+1)","v":""},null,null,null,null,null,null,null,null,"","","",null,null,"",null,null,"","","","","","  ",0,0,0,0,0,"",null,"","  ","","","","",""]
[{"$f":"IF(B18=\"\",\"\",MAX(A$1:A17)+1)","v":""},null,null,null,null,null,null,null,null,"","","",null,null,"",null,null,"","","","","","  ",0,0,0,0,0,"",null,"","  ","","","","",""]
[{"$f":"IF(B19=\"\",\"\",MAX(A$1:A18)+1)","v":""},null,null,null,null,null,null,null,null,"","","",null,null,"",null,null,"","","","","","  ",0,0,0,0,0,"",null,"","  ","","","","",""]
[{"$f":"IF(B20=\"\",\"\",MAX(A$1:A19)+1)","v":""},null,null,null,null,null,null,null,null,"","","",null,null,"",null,null,"","","","","","  ",0,0,0,0,0,"",null,"","  ","","","","",""]
[null,null,null,null,null,null,null,null,null,"","","",null,null,"",null,null,"","","","","","  ",0,0,0,0,0,"",null,"","  ","","","","",""]
[null,null,null,null,null,null,null,null,null,"","","",null,null,"",null,null,"","","",""]
[null,null,null,null,null,null,null,null,null,"","","",null,null,"",null,null,"","","",""]
[null,null,null,null,null,null,null,null,null,"","","",null,null,"",null,null,"","","",""]
[null,null,null,null,null,null,null,null,null,"","",null,null,null,"",null,null,"","","",""]
[null,null,null,null,null,null,null,null,null,"","",{"$f":"IFERROR(VLOOKUP(I26,A:B,2,FALSE),\"\")","v":""},null,null,"",null,null,"","","",""]
[null,null,null,null,null,null,null,null,null,"","","",null,null,"",null,null,"","","",""]
[null,null,null,null,null,null,null,null,null,"","","",null,null,"",null,null,"","","",""]
[null,null,null,null,null,null,null,null,null,"","","",null,null,"",null,null,"","","",""]
[null,null,null,null,null,null,null,null,null,"","","",null,null,"",null,null,"","","",""]
[null,null,null,null,null,null,null,null,null,"","","",null,null,"",null,null,"","","",""]
[null,null,null,null,null,null,null,null,null,"","","",null,null,"",null,null,"","","",""]
[null,null,null,null,null,null,null,null,null,"","","",null,null,"",null,null,"","","",""]
[null,null,null,null,null,null,null,null,null,"","","",null,null,"",null,null,"","","",""]
[null,null,null,null,null,null,null,null,null,"","","",null,null,"",null,null,"","","",""]
[null,null,null,null,null,null,null,null,null,"","","",null,null,"",null,null,"","","",""]
[null,null,null,null,null,null,null,null,null,"","","",null,null,"",null,null,"","","",""]
[null,null,null,null,null,null,null,null,null,"","","",null,null,"",null,null,"","","",""]
[null,null,null,null,null,null,null,null,null,"","","",null,null,"",null,null,"","","",""]
[null,null,null,null,null,null,null,null,null,"","","",null,null,"",null,null,"","","",""]
[null,null,null,null,null,null,null,null,null,"","","",null,null,"",null,null,"","","",""]
[null,null,null,null,null,null,null,null,null,"","","",null,null,"",null,null,"","","",""]
[null,null,null,null,null,null,null,null,null,"","","",null,null,"",null,null,"","","",""]
[null,null,null,null,null,null,null,null,null,"","","",null,null,"",null,null,"","","",""]
[null,null,null,null,null,null,null,null,null,"","","",null,null,"",null,null,"","","",""]
[null,null,null,null,null,null,null,null,null,"","","",null,null,"",null,null,"","","",""]
[null,null,null,null,null,null,null,null,null,"","","",null,null,"",null,null,"","","",""]
[null,null,null,null,null,null,null,null,null,"","","",null,null,"",null,null,"","","",""]
[null,null,null,null,null,null,null,null,null,"","","",null,null,"",null,null,"","","",""]
[null,null,null,null,null,null,null,null,null,"","","",null,null,"",null,null,"","","",""]
[null,null,null,null,null,null,null,null,null,"","","",null,null,"",null,null,"","","",""]
[null,null,null,null,null,null,null,null,null,"","","",null,null,"",null,null,"","","",""]
[null,null,null,null,null,null,null,null,null,"","","",null,null,"",null,null,"","","",""]
[null,null,null,null,null,null,null,null,null,"","","",null,null,"",null,null,"","","",""]
[null,null,null,null,null,null,null,null,null,"","","",null,null,"",null,null,"","","",""]
[null,null,null,null,null,null,null,null,null,"","","",null,null,"",null,null,"","","",""]
[null,null,null,null,null,null,null,null,null,"","","",null,null,"",null,null,"","","",""]
[null,null,null,null,null,null,null,null,null,"","","",null,null,"",null,null,"","","",""]
[null,null,null,null,null,null,null,null,null,"","","",null,null,"",null,null,"","","",""]
[null,null,null,null,null,null,null,null,null,"","","",null,null,"",null,null,"","","",""]
[null,null,null,null,null,null,null,null,null,"","","",null,null,"",null,null,"","","",""]
[null,null,null,null,null,null,null,null,null,"","","",null,null,"",null,null,"","","",""]
[null,null,null,null,null,null,null,null,null,"","","",null,null,"",null,null,"","","",""]
[null,null,null,null,null,null,null,null,null,"","","",null,null,"",null,null,"","","",""]
[null,null,null,null,null,null,null,null,null,{"$f":"IFERROR(VLOOKUP(H65,A:B,2,FALSE),\"\")","v":""},"","",null,null,"",null,null,"","","",""]
[null,null,null,null,null,null,null,null,null,"",{"$f":"IF(J66=\"\",\"\",\"-\")","v":""},"",null,null,"",null,null,"","","",""]
[null,null,null,null,null,null,null,null,null,"","","",null,null,"",null,null,"",{"$f":"IF(J67=\"\",\"\",(IF(R67=1,3,IF(R67=\"x\",1,0))))","v":""},{"$f":"IF(J67=\"\",\"\",IF(R67=2,3,IF(R67=\"x\",1,0)))","v":""},{"$f":"IF(R67=\"\",\"\",1)","v":""}]
[null,null,null,null,null,null,null,null,null,"","","",null,null,"",null,null,"","","",""]
[null,null,null,null,null,null,null,null,null,"","","",null,null,"",null,null,"","","",""]
[null,null,null,null,null,null,null,null,null,"","","",null,null,"",null,null,"","","",""]
[null,null,null,null,null,null,null,null,null,"","","",null,null,"",null,null,"","","",""]
[null,null,null,null,null,null,null,null,null,"","","",null,null,"",null,null,"","","",""]
[null,null,null,null,null,null,null,null,null,"","","",null,null,"",null,null,"","","",""]
[null,null,null,null,null,null,null,null,null,"","","",null,null,"",null,null,"","","",""]
[null,null,null,null,null,null,null,null,null,"","","",null,null,"",null,null,"","","",""]
[null,null,null,null,null,null,null,null,null,"","","",null,null,{"$f":"IF(J76=\"\",\"\",\"-\")","v":""},null,null,{"$f":"IF(N76=\"\",\"\",IF(N76>P76,1,IF(N76<P76,2,\"x\")))","v":""},"","",""]
[null,null,null,null,null,null,null,null,null,"","","",null,null,"",null,null,"","","",""]
[null,null,null,null,null,null,null,null,null,"","","",null,null,"",null,null,"","","",""]
[null,null,null,null,null,null,null,null,null,"","","",null,null,"",null,null,"","","",""]
[null,null,null,null,null,null,null,null,null,"","","",null,null,"",null,null,"","","",""]
[null,null,null,null,null,null,null,null,null,"","","",null,null,"",null,null,"","","",""]
[null,null,null,null,null,null,null,null,null,"","","",null,null,"",null,null,"","","",""]
[null,null,null,null,null,null,null,null,null,"","","",null,null,"",null,null,"","","",""]
[null,null,null,null,null,null,null,null,null,"","","",null,null,"",null,null,"","","",""]
[null,null,null,null,null,null,null,null,null,"","","",null,null,"",null,null,"","","",""]
[null,null,null,null,null,null,null,null,null,"","","",null,null,"",null,null,"","","",""]
[null,null,null,null,null,null,null,null,null,"","","",null,null,"",null,null,"","","",""]
[null,null,null,null,null,null,null,null,null,"","","",null,null,"",null,null,"","","",""]
[null,null,null,null,null,null,null,null,null,"","","",null,null,"",null,null,"","","",""]
[null,null,null,null,null,null,null,null,null,"","",{"$f":"IFERROR(VLOOKUP(I90,A:B,2,FALSE),\"\")","v":""},null,null,"",null,null,"","","",""]
[null,null,null,null,null,null,null,null,null,"","","",null,null,"",null,null,"","","",""]
[null,null,null,null,null,null,null,null,null,"","","",null,null,"",null,null,"","","",""]
[null,null,null,null,null,null,null,null,null,"","","",null,null,"",null,null,"","","",""]
[null,null,null,null,null,null,null,null,null,"","","",null,null,"",null,null,"","","",""]
[null,null,null,null,null,null,null,null,null,"","","",null,null,"",null,null,"","","",""]
[null,null,null,null,null,null,null,null,null,"","","",null,null,"",null,null,"","","",""]
[null,null,null,null,null,null,null,null,null,"","","",null,null,"",null,null,"","","",""]
[null,null,null,null,null,null,null,null,null,"","","",null,null,"",null,null,"","","",""]
[null,null,null,null,null,null,null,null,null,"","","",null,null,"",null,null,"","","",""]
[null,null,null,null,null,null,null,null,null,"","","",null,null,"",null,null,"","","",""]
[null,null,null,null,null,null,null,null,null,"","","",null,null,"",null,null,"","","",""]
[null,null,null,null,null,null,null,null,null,"","","",null,null,"",null,null,"","","",""]
[null,null,null,null,null,null,null,null,null,"","","",null,null,"",null,null,"","","",""]
[null,null,null,null,null,null,null,null,null,"","","",null,null,"",null,null,"","","",""]
[null,null,null,null,null,null,null,null,null,"","","",null,null,"",null,null,"","","",""]
[null,null,null,null,null,null,null,null,null,"","","",null,null,"",null,null,"","","",""]
[null,null,null,null,null,null,null,null,null,"","","",null,null,"",null,null,"","","",""]
[null,null,null,null,null,null,null,null,null,"","","",null,null,"",null,null,"","","",""]
[null,null,null,null,null,null,null,null,null,"","","",null,null,"",null,null,"","","",""]
[null,null,null,null,null,null,null,null,null,"","","",null,null,"",null,null,"","","",""]
[null,null,null,null,null,null,null,null,null,"","","",null,null,"",null,null,"","","",""]
[null,null,null,null,null,null,null,null,null,"","","",null,null,"",null,null,"","","",""]
[null,null,null,null,null,null,null,null,null,"","","",null,null,"",null,null,"","","",""]
[null,null,null,null,null,null,null,null,null,"","","",null,null,"",null,null,"","","",""]
[null,null,null,null,null,null,null,null,null,"","","",null,null,"",null,null,"","","",""]
[null,null,null,null,null,null,null,null,null,"","","",null,null,"",null,null,"","","",""]
[null,null,null,null,null,null,null,null,null,"","","",null,null,"",null,null,"","","",""]
[null,null,null,null,null,null,null,null,null,"","","",null,null,"",null,null,"","","",""]
[null,null,null,null,null,null,null,null,null,"","","",null,null,"",null,null,"","","",""]
[null,null,null,null,null,null,null,null,null,"","","",null,null,"",null,null,"","","",""]
[null,null,null,null,null,null,null,null,null,"","","",null,null,"",null,null,"","","",""]
[null,null,null,null,null,null,null,null,null,"","","",null,null,"",null,null,"","","",""]
[null,null,null,null,null,null,null,null,null,"","","",null,null,"",null,null,"","","",""]
[null,null,null,null,null,null,null,null,null,"","","",null,null,"",null,null,"","","",""]
[null,null,null,null,null,null,null,null,null,"","","",null,null,"",null,null,"","","",""]
[null,null,null,null,null,null,null,null,null,"","","",null,null,"",null,null,"","","",""]
[null,null,null,null,null,null,null,null,null,"","","",null,null,"",null,null,"","","",""]
[null,null,null,null,null,null,null,null,null,"","","",null,null,"",null,null,"","","",""]
[null,null,null,null,null,null,null,null,null,{"$f":"IFERROR(VLOOKUP(H129,A:B,2,FALSE),\"\")","v":""},"","",null,null,"",null,null,"","","",""]
[null,null,null,null,null,null,null,null,null,"",{"$f":"IF(J130=\"\",\"\",\"-\")","v":""},"",null,null,"",null,null,"","","",""]
[null,null,null,null,null,null,null,null,null,"","","",null,null,"",null,null,"",{"$f":"IF(J131=\"\",\"\",(IF(R131=1,3,IF(R131=\"x\",1,0))))","v":""},{"$f":"IF(J131=\"\",\"\",IF(R131=2,3,IF(R131=\"x\",1,0)))","v":""},{"$f":"IF(R131=\"\",\"\",1)","v":""}]
[null,null,null,null,null,null,null,null,null,"","","",null,null,"",null,null,"","","",""]
[null,null,null,null,null,null,null,null,null,"","","",null,null,"",null,null,"","","",""]
[null,null,null,null,null,null,null,null,null,"","","",null,null,"",null,null,"","","",""]
[null,null,null,null,null,null,null,null,null,"","","",null,null,"",null,null,"","","",""]
[null,null,null,null,null,null,null,null,null,"","","",null,null,"",null,null,"","","",""]
[null,null,null,null,null,null,null,null,null,"","","",null,null,"",null,null,"","","",""]
[null,null,null,null,null,null,null,null,null,"","","",null,null,"",null,null,"","","",""]
[null,null,null,null,null,null,null,null,null,"","","",null,null,"",null,null,"","","",""]
[null,null,null,null,null,null,null,null,null,"","","",null,null,{"$f":"IF(J140=\"\",\"\",\"-\")","v":""},null,null,{"$f":"IF(N140=\"\",\"\",IF(N140>P140,1,IF(N140<P140,2,\"x\")))","v":""},"","",""]
[null,null,null,null,null,null,null,null,null,"","","",null,null,"",null,null,"","","",""]
[null,null,null,null,null,null,null,null,null,"","","",null,null,"",null,null,"","","",""]
[null,null,null,null,null,null,null,null,null,"","","",null,null,"",null,null,"","","",""]
[null,null,null,null,null,null,null,null,null,"","","",null,null,"",null,null,"","","",""]
[null,null,null,null,null,null,null,null,null,"","","",null,null,"",null,null,"","","",""]
[null,null,null,null,null,null,null,null,null,"","","",null,null,"",null,null,"","","",""]
[null,null,null,null,null,null,null,null,null,"","","",null,null,"",null,null,"","","",""]
[null,null,null,null,null,null,null,null,null,"","","",null,null,"",null,null,"","","",""]
[null,null,null,null,null,null,null,null,null,"","","",null,null,"",null,null,"","","",""]
[null,null,null,null,null,null,null,null,null,"","","",null,null,"",null,null,"","","",""]
[null,null,null,null,null,null,null,null,null,"","","",null,null,"",null,null,"","","",""]
[null,null,null,null,null,null,null,null,null,"","","",null,null,"",null,null,"","","",""]
[null,null,null,null,null,null,null,null,null,"","","",null,null,"",null,null,"","","",""]
[null,null,null,null,null,null,null,null,null,"","",{"$f":"IFERROR(VLOOKUP(I154,A:B,2,FALSE),\"\")","v":""},null,null,"",null,null,"","","",""]
[null,null,null,null,null,null,null,null,null,"","","",null,null,"",null,null,"","","",""]
[null,null,null,null,null,null,null,null,null,"","","",null,null,"",null,null,"","","",""]
[null,null,null,null,null,null,null,null,null,"","","",null,null,"",null,null,"","","",""]
[null,null,null,null,null,null,null,null,null,"","","",null,null,"",null,null,"","","",""]
[null,null,null,null,null,null,null,null,null,"","","",null,null,"",null,null,"","","",""]
[null,null,null,null,null,null,null,null,null,"","","",null,null,"",null,null,"","","",""]
[null,null,null,null,null,null,null,null,null,"","","",null,null,"",null,null,"","","",""]
[null,null,null,null,null,null,null,null,null,"","","",null,null,"",null,null,"","","",""]
[null,null,null,null,null,null,null,null,null,"","","",null,null,"",null,null,"","","",""]
[null,null,null,null,null,null,null,null,null,"","","",null,null,"",null,null,"","","",""]
[null,null,null,null,null,null,null,null,null,"","","",null,null,"",null,null,"","","",""]
[null,null,null,null,null,null,null,null,null,"","","",null,null,"",null,null,"","","",""]
[null,null,null,null,null,null,null,null,null,"","","",null,null,"",null,null,"","","",""]
[null,null,null,null,null,null,null,null,null,"","","",null,null,"",null,null,"","","",""]
[null,null,null,null,null,null,null,null,null,"","","",null,null,"",null,null,"","","",""]
[null,null,null,null,null,null,null,null,null,"","","",null,null,"",null,null,"","","",""]
[null,null,null,null,null,null,null,null,null,"","","",null,null,"",null,null,"","","",""]
[null,null,null,null,null,null,null,null,null,"","","",null,null,"",null,null,"","","",""]
[null,null,null,null,null,null,null,null,null,"","","",null,null,"",null,null,"","","",""]
[null,null,null,null,null,null,null,null,null,"","","",null,null,"",null,null,"","","",""]
[null,null,null,null,null,null,null,null,null,"","","",null,null,"",null,null,"","","",""]
[null,null,null,null,null,null,null,null,null,"","","",null,null,"",null,null,"","","",""]
[null,null,null,null,null,null,null,null,null,"","","",null,null,"",null,null,"","","",""]
[null,null,null,null,null,null,null,null,null,"","","",null,null,"",null,null,"","","",""]
[null,null,null,null,null,null,null,null,null,"","","",null,null,"",null,null,"","","",""]
[null,null,null,null,null,null,null,null,null,"","","",null,null,"",null,null,"","","",""]
[null,null,null,null,null,null,null,null,null,"","","",null,null,"",null,null,"","","",""]
[null,null,null,null,null,null,null,null,null,"","","",null,null,"",null,null,"","","",""]
[null,null,null,null,null,null,null,null,null,"","","",null,null,"",null,null,"","","",""]
[null,null,null,null,null,null,null,null,null,"","","",null,null,"",null,null,"","","",""]
[null,null,null,null,null,null,null,null,null,"","","",null,null,"",null,null,"","","",""]
[null,null,null,null,null,null,null,null,null,"","","",null,null,"",null,null,"","","",""]
[null,null,null,null,null,null,null,null,null,"","","",null,null,"",null,null,"","","",""]
[null,null,null,null,null,null,null,null,null,"","","",null,null,"",null,null,"","","",""]
[null,null,null,null,null,null,null,null,null,"","","",null,null,"",null,null,"","","",""]
[null,null,null,null,null,null,null,null,null,"","","",null,null,"",null,null,"","","",""]
[null,null,null,null,null,null,null,null,null,"","","",null,null,"",null,null,"","","",""]
[null,null,null,null,null,null,null,null,null,"","","",null,null,"",null,null,"","","",""]
[null,null,null,null,null,null,null,null,null,{"$f":"IFERROR(VLOOKUP(H193,A:B,2,FALSE),\"\")","v":""},"","",null,null,"",null,null,"","","",""]
[null,null,null,null,null,null,null,null,null,"",{"$f":"IF(J194=\"\",\"\",\"-\")","v":""},"",null,null,"",null,null,"","","",""]
[null,null,null,null,null,null,null,null,null,"","","",null,null,"",null,null,"",{"$f":"IF(J195=\"\",\"\",(IF(R195=1,3,IF(R195=\"x\",1,0))))","v":""},{"$f":"IF(J195=\"\",\"\",IF(R195=2,3,IF(R195=\"x\",1,0)))","v":""},{"$f":"IF(R195=\"\",\"\",1)","v":""}]
[null,null,null,null,null,null,null,null,null,"","","",null,null,"",null,null,"","","",""]
[null,null,null,null,null,null,null,null,null,"","","",null,null,"",null,null,"","","",""]
[null,null,null,null,null,null,null,null,null,"","","",null,null,"",null,null,"","","",""]
[null,null,null,null,null,null,null,null,null,"","","",null,null,"",null,null,"","","",""]
[null,null,null,null,null,null,null,null,null,"","","",null,null,"",null,null,"","","",""]
[null,null,null,null,null,null,null,null,null,"","","",null,null,"",null,null,"","","",""]
[null,null,null,null,null,null,null,null,null,"","","",null,null,"",null,null,"","","",""]
[null,null,null,null,null,null,null,null,null,"","","",null,null,"",null,null,"","","",""]
[null,null,null,null,null,null,null,null,null,"","","",null,null,{"$f":"IF(J204=\"\",\"\",\"-\")","v":""},null,null,{"$f":"IF(N204=\"\",\"\",IF(N204>P204,1,IF(N204<P204,2,\"x\")))","v":""},"","",""]
[null,null,null,null,null,null,null,null,null,"","","",null,null,"",null,null,"","","",""]
[null,null,null,null,null,null,null,null,null,"","","",null,null,"",null,null,"","","",""]
[null,null,null,null,null,null,null,null,null,"","","",null,null,"",null,null,"","","",""]
[null,null,null,null,null,null,null,null,null,"","","",null,null,"",null,null,"","","",""]
[null,null,null,null,null,null,null,null,null,"","","",null,null,"",null,null,"","","",""]
[null,null,null,null,null,null,null,null,null,"","","",null,null,"",null,null,"","","",""]
[null,null,null,null,null,null,null,null,null,"","","",null,null,"",null,null,"","","",""]
[null,null,null,null,null,null,null,null,null,"","","",null,null,"",null,null,"","","",""]
[null,null,null,null,null,null,null,null,null,"","","",null,null,"",null,null,"","","",""]
[null,null,null,null,null,null,null,null,null,"","","",null,null,"",null,null,"","","",""]
[null,null,null,null,null,null,null,null,null,"","","",null,null,"",null,null,"","","",""]
[null,null,null,null,null,null,null,null,null,"","","",null,null,"",null,null,"","","",""]
[null,null,null,null,null,null,null,null,null,"","","",null,null,"",null,null,"","","",""]
[null,null,null,null,null,null,null,null,null,"","",{"$f":"IFERROR(VLOOKUP(I218,A:B,2,FALSE),\"\")","v":""},null,null,"",null,null,"","","",""]
[null,null,null,null,null,null,null,null,null,"","","",null,null,"",null,null,"","","",""]
[null,null,null,null,null,null,null,null,null,"","","",null,null,"",null,null,"","","",""]
[null,null,null,null,null,null,null,null,null,"","","",null,null,"",null,null,"","","",""]
[null,null,null,null,null,null,null,null,null,"","","",null,null,"",null,null,"","","",""]
[null,null,null,null,null,null,null,null,null,"","","",null,null,"",null,null,"","","",""]
[null,null,null,null,null,null,null,null,null,"","","",null,null,"",null,null,"","","",""]
[null,null,null,null,null,null,null,null,null,"","","",null,null,"",null,null,"","","",""]
[null,null,null,null,null,null,null,null,null,"","","",null,null,"",null,null,"","","",""]
[null,null,null,null,null,null,null,null,null,"","","",null,null,"",null,null,"","","",""]
[null,null,null,null,null,null,null,null,null,"","","",null,null,"",null,null,"","","",""]
[null,null,null,null,null,null,null,null,null,"","","",null,null,"",null,null,"","","",""]
[null,null,null,null,null,null,null,null,null,"","","",null,null,"",null,null,"","","",""]
[null,null,null,null,null,null,null,null,null,"","","",null,null,"",null,null,"","","",""]
[null,null,null,null,null,null,null,null,null,"","","",null,null,"",null,null,"","","",""]
[null,null,null,null,null,null,null,null,null,"","","",null,null,"",null,null,"","","",""]
[null,null,null,null,null,null,null,null,null,"","","",null,null,"",null,null,"","","",""]
[null,null,null,null,null,null,null,null,null,"","","",null,null,"",null,null,"","","",""]
[null,null,null,null,null,null,null,null,null,"","","",null,null,"",null,null,"","","",""]
[null,null,null,null,null,null,null,null,null,"","","",null,null,"",null,null,"","","",""]
[null,null,null,null,null,null,null,null,null,"","","",null,null,"",null,null,"","","",""]
[null,null,null,null,null,null,null,null,null,"","","",null,null,"",null,null,"","","",""]
[null,null,null,null,null,null,null,null,null,"","","",null,null,"",null,null,"","","",""]
[null,null,null,null,null,null,null,null,null,"","","",null,null,"",null,null,"","","",""]
[null,null,null,null,null,null,null,null,null,"","","",null,null,"",null,null,"","","",""]
[null,null,null,null,null,null,null,null,null,"","","",null,null,"",null,null,"","","",""]
[null,null,null,null,null,null,null,null,null,"","","",null,null,"",null,null,"","","",""]
[null,null,null,null,null,null,null,null,null,"","","",null,null,"",null,null,"","","",""]
[null,null,null,null,null,null,null,null,null,"","","",null,null,"",null,null,"","","",""]
[null,null,null,null,null,null,null,null,null,"","","",null,null,"",null,null,"","","",""]
[null,null,null,null,null,null,null,null,null,"","","",null,null,"",null,null,"","","",""]
[null,null,null,null,null,null,null,null,null,"","","",null,null,"",null,null,"","","",""]
[null,null,null,null,null,null,null,null,null,"","","",null,null,"",null,null,"","","",""]
[null,null,null,null,null,null,null,null,null,"","","",null,null,"",null,null,"","","",""]
[null,null,null,null,null,null,null,null,null,"","","",null,null,"",null,null,"","","",""]
[null,null,null,null,null,null,null,null,null,"","","",null,null,"",null,null,"","","",""]
[null,null,null,null,null,null,null,null,null,"","","",null,null,"",null,null,"","","",""]
[null,null,null,null,null,null,null,null,null,"","","",null,null,"",null,null,"","","",""]
[null,null,null,null,null,null,null,null,null,"","","",null,null,"",null,null,"","","",""]
[null,null,null,null,null,null,null,null,null,{"$f":"IFERROR(VLOOKUP(H257,A:B,2,FALSE),\"\")","v":""},"","",null,null,"",null,null,"","","",""]
[null,null,null,null,null,null,null,null,null,"",{"$f":"IF(J258=\"\",\"\",\"-\")","v":""},"",null,null,"",null,null,"","","",""]
[null,null,null,null,null,null,null,null,null,"","","",null,null,"",null,null,"",{"$f":"IF(J259=\"\",\"\",(IF(R259=1,3,IF(R259=\"x\",1,0))))","v":""},{"$f":"IF(J259=\"\",\"\",IF(R259=2,3,IF(R259=\"x\",1,0)))","v":""},{"$f":"IF(R259=\"\",\"\",1)","v":""}]
[null,null,null,null,null,null,null,null,null,"","","",null,null,"",null,null,"","","",""]
[null,null,null,null,null,null,null,null,null,"","","",null,null,"",null,null,"","","",""]
[null,null,null,null,null,null,null,null,null,"","","",null,null,"",null,null,"","","",""]
[null,null,null,null,null,null,null,null,null,"","","",null,null,"",null,null,"","","",""]
[null,null,null,null,null,null,null,null,null,"","","",null,null,"",null,null,"","","",""]
[null,null,null,null,null,null,null,null,null,"","","",null,null,"",null,null,"","","",""]
[null,null,null,null,null,null,null,null,null,"","","",null,null,"",null,null,"","","",""]
[null,null,null,null,null,null,null,null,null,"","","",null,null,"",null,null,"","","",""]
[null,null,null,null,null,null,null,null,null,"","","",null,null,{"$f":"IF(J268=\"\",\"\",\"-\")","v":""},null,null,{"$f":"IF(N268=\"\",\"\",IF(N268>P268,1,IF(N268<P268,2,\"x\")))","v":""},"","",""]
[null,null,null,null,null,null,null,null,null,"","","",null,null,"",null,null,"","","",""]
[null,null,null,null,null,null,null,null,null,"","","",null,null,"",null,null,"","","",""]
[null,null,null,null,null,null,null,null,null,"","","",null,null,"",null,null,"","","",""]
[null,null,null,null,null,null,null,null,null,"","","",null,null,"",null,null,"","","",""]
[null,null,null,null,null,null,null,null,null,"","","",null,null,"",null,null,"","","",""]
[null,null,null,null,null,null,null,null,null,"","","",null,null,"",null,null,"","","",""]
[null,null,null,null,null,null,null,null,null,"","","",null,null,"",null,null,"","","",""]
[null,null,null,null,null,null,null,null,null,"","","",null,null,"",null,null,"","","",""]
[null,null,null,null,null,null,null,null,null,"","","",null,null,"",null,null,"","","",""]
[null,null,null,null,null,null,null,null,null,"","","",null,null,"",null,null,"","","",""]
[null,null,null,null,null,null,null,null,null,"","","",null,null,"",null,null,"","","",""]
[null,null,null,null,null,null,null,null,null,"","","",null,null,"",null,null,"","","",""]
[null,null,null,null,null,null,null,null,null,"","","",null,null,"",null,null,"","","",""]
[null,null,null,null,null,null,null,null,null,"","",{"$f":"IFERROR(VLOOKUP(I282,A:B,2,FALSE),\"\")","v":""},null,null,"",null,null,"","","",""]
[null,null,null,null,null,null,null,null,null,"","","",null,null,"",null,null,"","","",""]
[null,null,null,null,null,null,null,null,null,"","","",null,null,"",null,null,"","","",""]
[null,null,null,null,null,null,null,null,null,"","","",null,null,"",null,null,"","","",""]
[null,null,null,null,null,null,null,null,null,"","","",null,null,"",null,null,"","","",""]
[null,null,null,null,null,null,null,null,null,"","","",null,null,"",null,null,"","","",""]
[null,null,null,null,null,null,null,null,null,"","","",null,null,"",null,null,"","","",""]
[null,null,null,null,null,null,null,null,null,"","","",null,null,"",null,null,"","","",""]
[null,null,null,null,null,null,null,null,null,"","","",null,null,"",null,null,"","","",""]
[null,null,null,null,null,null,null,null,null,"","","",null,null,"",null,null,"","","",""]
[null,null,null,null,null,null,null,null,null,"","","",null,null,"",null,null,"","","",""]
[null,null,null,null,null,null,null,null,null,"","","",null,null,"",null,null,"","","",""]
[null,null,null,null,null,null,null,null,null,"","","",null,null,"",null,null,"","","",""]
[null,null,null,null,null,null,null,null,null,"","","",null,null,"",null,null,"","","",""]
[null,null,null,null,null,null,null,null,null,"","","",null,null,"",null,null,"","","",""]
[null,null,null,null,null,null,null,null,null,"","","",null,null,"",null,null,"","","",""]
[null,null,null,null,null,null,null,null,null,"","","",null,null,"",null,null,"","","",""]
[null,null,null,null,null,null,null,null,null,"","","",null,null,"",null,null,"","","",""]
[null,null,null,null,null,null,null,null,null,"","","",null,null,"",null,null,"","","",""]
[null,null,null,null,null,null,null,null,null,"","","",null,null,"",null,null,"","","",""]
[null,null,null,null,null,null,null,null,null,"","","",null,null,"",null,null,"","","",""]
[null,null,null,null,null,null,null,null,null,"","","",null,null,"",null,null,"","","",""]
[null,null,null,null,null,null,null,null,null,"","","",null,null,"",null,null,"","","",""]
[null,null,null,null,null,null,null,null,null,"","","",null,null,"",null,null,"","","",""]
[null,null,null,null,null,null,null,null,null,"","","",null,null,"",null,null,"","","",""]
[null,null,null,null,null,null,null,null,null,"","","",null,null,"",null,null,"","","",""]
[null,null,null,null,null,null,null,null,null,"","","",null,null,"",null,null,"","","",""]
[null,null,null,null,null,null,null,null,null,"","","",null,null,"",null,null,"","","",""]
[null,null,null,null,null,null,null,null,null,"","","",null,null,"",null,null,"","","",""]
[null,null,null,null,null,null,null,null,null,"","","",null,null,"",null,null,"","","",""]
[null,null,null,null,null,null,null,null,null,"","","",null,null,"",null,null,"","","",""]
[null,null,null,null,null,null,null,null,null,"","","",null,null,"",null,null,"","","",""]
[null,null,null,null,null,null,null,null,null,"","","",null,null,"",null,null,"","","",""]
[null,null,null,null,null,null,null,null,null,"","","",null,null,"",null,null,"","","",""]
[null,null,null,null,null,null,null,null,null,"","","",null,null,"",null,null,"","","",""]
[null,null,null,null,null,null,null,null,null,"","","",null,null,"",null,null,"","","",""]
[null,null,null,null,null,null,null,null,null,"","","",null,null,"",null,null,"","","",""]
[null,null,null,null,null,null,null,null,null,"","","",null,null,"",null,null,"","","",""]
[null,null,null,null,null,null,null,null,null,"","","",null,null,"",null,null,"","","",""]
[null,null,null,null,null,null,null,null,null,{"$f":"IFERROR(VLOOKUP(H321,A:B,2,FALSE),\"\")","v":""},"","",null,null,"",null,null,"","","",""]
[null,null,null,null,null,null,null,null,null,"",{"$f":"IF(J322=\"\",\"\",\"-\")","v":""},"",null,null,"",null,null,"","","",""]
[null,null,null,null,null,null,null,null,null,"","","",null,null,"",null,null,"",{"$f":"IF(J323=\"\",\"\",(IF(R323=1,3,IF(R323=\"x\",1,0))))","v":""},{"$f":"IF(J323=\"\",\"\",IF(R323=2,3,IF(R323=\"x\",1,0)))","v":""},{"$f":"IF(R323=\"\",\"\",1)","v":""}]
[null,null,null,null,null,null,null,null,null,"","","",null,null,"",null,null,"","","",""]
[null,null,null,null,null,null,null,null,null,"","","",null,null,"",null,null,"","","",""]
[null,null,null,null,null,null,null,null,null,"","","",null,null,"",null,null,"","","",""]
[null,null,null,null,null,null,null,null,null,"","","",null,null,"",null,null,"","","",""]
[null,null,null,null,null,null,null,null,null,"","","",null,null,"",null,null,"","","",""]
[null,null,null,null,null,null,null,null,null,"","","",null,null,"",null,null,"","","",""]
[null,null,null,null,null,null,null,null,null,"","","",null,null,"",null,null,"","","",""]
[null,null,null,null,null,null,null,null,null,"","","",null,null,"",null,null,"","","",""]
[null,null,null,null,null,null,null,null,null,"","","",null,null,{"$f":"IF(J332=\"\",\"\",\"-\")","v":""},null,null,{"$f":"IF(N332=\"\",\"\",IF(N332>P332,1,IF(N332<P332,2,\"x\")))","v":""},"","",""]
[null,null,null,null,null,null,null,null,null,"","","",null,null,"",null,null,"","","",""]
[null,null,null,null,null,null,null,null,null,"","","",null,null,"",null,null,"","","",""]
[null,null,null,null,null,null,null,null,null,"","","",null,null,"",null,null,"","","",""]
[null,null,null,null,null,null,null,null,null,"","","",null,null,"",null,null,"","","",""]
[null,null,null,null,null,null,null,null,null,"","","",null,null,"",null,null,"","","",""]
[null,null,null,null,null,null,null,null,null,"","","",null,null,"",null,null,"","","",""]
[null,null,null,null,null,null,null,null,null,"","","",null,null,"",null,null,"","","",""]
[null,null,null,null,null,null,null,null,null,"","","",null,null,"",null,null,"","","",""]
[null,null,null,null,null,null,null,null,null,"","","",null,null,"",null,null,"","","",""]
[null,null,null,null,null,null,null,null,null,"","","",null,null,"",null,null,"","","",""]
[null,null,null,null,null,null,null,null,null,"","","",null,null,"",null,null,"","","",""]
[null,null,null,null,null,null,null,null,null,"","","",null,null,"",null,null,"","","",""]
[null,null,null,null,null,null,null,null,null,"","","",null,null,"",null,null,"","","",""]
[null,null,null,null,null,null,null,null,null,"","",{"$f":"IFERROR(VLOOKUP(I346,A:B,2,FALSE),\"\")","v":""},null,null,"",null,null,"","","",""]
[null,null,null,null,null,null,null,null,null,"","","",null,null,"",null,null,"","","",""]
[null,null,null,null,null,null,null,null,null,"","","",null,null,"",null,null,"","","",""]
[null,null,null,null,null,null,null,null,null,"","","",null,null,"",null,null,"","","",""]
[null,null,null,null,null,null,null,null,null,"","","",null,null,"",null,null,"","","",""]
[null,null,null,null,null,null,null,null,null,"","","",null,null,"",null,null,"","","",""]
[null,null,null,null,null,null,null,null,null,"","","",null,null,"",null,null,"","","",""]
[null,null,null,null,null,null,null,null,null,"","","",null,null,"",null,null,"","","",""]
[null,null,null,null,null,null,null,null,null,"","","",null,null,"",null,null,"","","",""]
[null,null,null,null,null,null,null,null,null,"","","",null,null,"",null,null,"","","",""]
[null,null,null,null,null,null,null,null,null,"","","",null,null,"",null,null,"","","",""]
[null,null,null,null,null,null,null,null,null,"","","",null,null,"",null,null,"","","",""]
[null,null,null,null,null,null,null,null,null,"","","",null,null,"",null,null,"","","",""]
[null,null,null,null,null,null,null,null,null,"","","",null,null,"",null,null,"","","",""]
[null,null,null,null,null,null,null,null,null,"","","",null,null,"",null,null,"","","",""]
[null,null,null,null,null,null,null,null,null,"","","",null,null,"",null,null,"","","",""]
[null,null,null,null,null,null,null,null,null,"","","",null,null,"",null,null,"","","",""]
[null,null,null,null,null,null,null,null,null,"","","",null,null,"",null,null,"","","",""]
[null,null,null,null,null,null,null,null,null,"","","",null,null,"",null,null,"","","",""]
[null,null,null,null,null,null,null,null,null,"","","",null,null,"",null,null,"","","",""]
[null,null,null,null,null,null,null,null,null,"","","",null,null,"",null,null,"","","",""]
[null,null,null,null,null,null,null,null,null,"","","",null,null,"",null,null,"","","",""]
[null,null,null,null,null,null,null,null,null,"","","",null,null,"",null,null,"","","",""]
[null,null,null,null,null,null,null,null,null,"","","",null,null,"",null,null,"","","",""]
[null,null,null,null,null,null,null,null,null,"","","",null,null,"",null,null,"","","",""]
[null,null,null,null,null,null,null,null,null,"","","",null,null,"",null,null,"","","",""]
[null,null,null,null,null,null,null,null,null,"","","",null,null,"",null,null,"","","",""]
[null,null,null,null,null,null,null,null,null,"","","",null,null,"",null,null,"","","",""]
[null,null,null,null,null,null,null,null,null,"","","",null,null,"",null,null,"","","",""]
[null,null,null,null,null,null,null,null,null,"","","",null,null,"",null,null,"","","",""]
[null,null,null,null,null,null,null,null,null,"","","",null,null,"",null,null,"","","",""]
[null,null,null,null,null,null,null,null,null,"","","",null,null,"",null,null,"","","",""]
[null,null,null,null,null,null,null,null,null,"","","",null,null,"",null,null,"","","",""]
[null,null,null,null,null,null,null,null,null,"","","",null,null,"",null,null,"","","",""]
[null,null,null,null,null,null,null,null,null,"","","",null,null,"",null,null,"","","",""]
[null,null,null,null,null,null,null,null,null,"","","",null,null,"",null,null,"","","",""]
[null,null,null,null,null,null,null,null,null,"","","",null,null,"",null,null,"","","",""]
[null,null,null,null,null,null,null,null,null,"","","",null,null,"",null,null,"","","",""]
[null,null,null,null,null,null,null,null,null,"","","",null,null,"",null,null,"","","",""]
[null,null,null,null,null,null,null,null,null,{"$f":"IFERROR(VLOOKUP(H385,A:B,2,FALSE),\"\")","v":""},"","",null,null,"",null,null,"","","",""]
[null,null,null,null,null,null,null,null,null,"",{"$f":"IF(J386=\"\",\"\",\"-\")","v":""},"",null,null,"",null,null,"","","",""]
[null,null,null,null,null,null,null,null,null,"","","",null,null,"",null,null,"",{"$f":"IF(J387=\"\",\"\",(IF(R387=1,3,IF(R387=\"x\",1,0))))","v":""},{"$f":"IF(J387=\"\",\"\",IF(R387=2,3,IF(R387=\"x\",1,0)))","v":""},{"$f":"IF(R387=\"\",\"\",1)","v":""}]
[null,null,null,null,null,null,null,null,null,"","","",null,null,"",null,null,"","","",""]
[null,null,null,null,null,null,null,null,null,"","","",null,null,"",null,null,"","","",""]
[null,null,null,null,null,null,null,null,null,"","","",null,null,"",null,null,"","","",""]
[null,null,null,null,null,null,null,null,null,"","","",null,null,"",null,null,"","","",""]
[null,null,null,null,null,null,null,null,null,"","","",null,null,"",null,null,"","","",""]
[null,null,null,null,null,null,null,null,null,"","","",null,null,"",null,null,"","","",""]
[null,null,null,null,null,null,null,null,null,"","","",null,null,"",null,null,"","","",""]
[null,null,null,null,null,null,null,null,null,"","","",null,null,"",null,null,"","","",""]
[null,null,null,null,null,null,null,null,null,"","","",null,null,{"$f":"IF(J396=\"\",\"\",\"-\")","v":""},null,null,{"$f":"IF(N396=\"\",\"\",IF(N396>P396,1,IF(N396<P396,2,\"x\")))","v":""},"","",""]
[null,null,null,null,null,null,null,null,null,"","","",null,null,"",null,null,"","","",""]
[null,null,null,null,null,null,null,null,null,"","","",null,null,"",null,null,"","","",""]
[null,null,null,null,null,null,null,null,null,"","","",null,null,"",null,null,"","","",""]
[null,null,null,null,null,null,null,null,null,"","","",null,null,"",null,null,"","","",""]
[null,null,null,null,null,null,null,null,null,"","","",null,null,"",null,null,"","","",""]
[null,null,null,null,null,null,null,null,null,"","","",null,null,"",null,null,"","","",""]
[null,null,null,null,null,null,null,null,null,"","","",null,null,"",null,null,"","","",""]
[null,null,null,null,null,null,null,null,null,"","","",null,null,"",null,null,"","","",""]
[null,null,null,null,null,null,null,null,null,"","","",null,null,"",null,null,"","","",""]
[null,null,null,null,null,null,null,null,null,"","","",null,null,"",null,null,"","","",""]
[null,null,null,null,null,null,null,null,null,"","","",null,null,"",null,null,"","","",""]
[null,null,null,null,null,null,null,null,null,"","","",null,null,"",null,null,"","","",""]
[null,null,null,null,null,null,null,null,null,"","","",null,null,"",null,null,"","","",""]
[null,null,null,null,null,null,null,null,null,"","",{"$f":"IFERROR(VLOOKUP(I410,A:B,2,FALSE),\"\")","v":""},null,null,"",null,null,"","","",""]
[null,null,null,null,null,null,null,null,null,"","","",null,null,"",null,null,"","","",""]
[null,null,null,null,null,null,null,null,null,"","","",null,null,"",null,null,"","","",""]
[null,null,null,null,null,null,null,null,null,"","","",null,null,"",null,null,"","","",""]
[null,null,null,null,null,null,null,null,null,"","","",null,null,"",null,null,"","","",""]
[null,null,null,null,null,null,null,null,null,"","","",null,null,"",null,null,"","","",""]
[null,null,null,null,null,null,null,null,null,"","","",null,null,"",null,null,"","","",""]
[null,null,null,null,null,null,null,null,null,"","","",null,null,"",null,null,"","","",""]
[null,null,null,null,null,null,null,null,null,"","","",null,null,"",null,null,"","","",""]
[null,null,null,null,null,null,null,null,null,"","","",null,null,"",null,null,"","","",""]
[null,null,null,null,null,null,null,null,null,"","","",null,null,"",null,null,"","","",""]
[null,null,null,null,null,null,null,null,null,"","","",null,null,"",null,null,"","","",""]
[null,null,null,null,null,null,null,null,null,"","","",null,null,"",null,null,"","","",""]
[null,null,null,null,null,null,null,null,null,"","","",null,null,"",null,null,"","","",""]
[null,null,null,null,null,null,null,null,null,"","","",null,null,"",null,null,"","","",""]
[null,null,null,null,null,null,null,null,null,"","","",null,null,"",null,null,"","","",""]
[null,null,null,null,null,null,null,null,null,"","","",null,null,"",null,null,"","","",""]
[null,null,null,null,null,null,null,null,null,"","","",null,null,"",null,null,"","","",""]
[null,null,null,null,null,null,null,null,null,"","","",null,null,"",null,null,"","","",""]
[null,null,null,null,null,null,null,null,null,"","","",null,null,"",null,null,"","","",""]
[null,null,null,null,null,null,null,null,null,"","","",null,null,"",null,null,"","","",""]
[null,null,null,null,null,null,null,null,null,"","","",null,null,"",null,null,"","","",""]
[null,null,null,null,null,null,null,null,null,"","","",null,null,"",null,null,"","","",""]
[null,null,null,null,null,null,null,null,null,"","","",null,null,"",null,null,"","","",""]
[null,null,null,null,null,null,null,null,null,"","","",null,null,"",null,null,"","","",""]
[null,null,null,null,null,null,null,null,null,"","","",null,null,"",null,null,"","","",""]
[null,null,null,null,null,null,null,null,null,"","","",null,null,"",null,null,"","","",""]
[null,null,null,null,null,null,null,null,null,"","","",null,null,"",null,null,"","","",""]
[null,null,null,null,null,null,null,null,null,"","","",null,null,"",null,null,"","","",""]
[null,null,null,null,null,null,null,null,null,"","","",null,null,"",null,null,"","","",""]
[null,null,null,null,null,null,null,null,null,"","","",null,null,"",null,null,"","","",""]
[null,null,null,null,null,null,null,null,null,"","","",null,null,"",null,null,"","","",""]
[null,null,null,null,null,null,null,null,null,"","","",null,null,"",null,null,"","","",""]
[null,null,null,null,null,null,null,null,null,"","","",null,null,"",null,null,"","","",""]
[null,null,null,null,null,null,null,null,null,"","","",null,null,"",null,null,"","","",""]
[null,null,null,null,null,null,null,null,null,"","","",null,null,"",null,null,"","","",""]
[null,null,null,null,null,null,null,null,null,"","","",null,null,"",null,null,"","","",""]
[null,null,null,null,null,null,null,null,null,"","","",null,null,"",null,null,"","","",""]
[null,null,null,null,null,null,null,null,null,"","","",null,null,"",null,null,"","","",""]
[null,null,null,null,null,null,null,null,null,{"$f":"IFERROR(VLOOKUP(H449,A:B,2,FALSE),\"\")","v":""},"","",null,null,"",null,null,"","","",""]
[null,null,null,null,null,null,null,null,null,"",{"$f":"IF(J450=\"\",\"\",\"-\")","v":""},"",null,null,"",null,null,"","","",""]
[null,null,null,null,null,null,null,null,null,"","","",null,null,"",null,null,"",{"$f":"IF(J451=\"\",\"\",(IF(R451=1,3,IF(R451=\"x\",1,0))))","v":""},{"$f":"IF(J451=\"\",\"\",IF(R451=2,3,IF(R451=\"x\",1,0)))","v":""},{"$f":"IF(R451=\"\",\"\",1)","v":""}]
[null,null,null,null,null,null,null,null,null,"","","",null,null,"",null,null,"","","",""]
[null,null,null,null,null,null,null,null,null,"","","",null,null,"",null,null,"","","",""]
[null,null,null,null,null,null,null,null,null,"","","",null,null,"",null,null,"","","",""]
[null,null,null,null,null,null,null,null,null,"","","",null,null,"",null,null,"","","",""]
[null,null,null,null,null,null,null,null,null,"","","",null,null,"",null,null,"","","",""]
[null,null,null,null,null,null,null,null,null,"","","",null,null,"",null,null,"","","",""]
[null,null,null,null,null,null,null,null,null,"","","",null,null,"",null,null,"","","",""]
[null,null,null,null,null,null,null,null,null,"","","",null,null,"",null,null,"","","",""]
[null,null,null,null,null,null,null,null,null,"","","",null,null,{"$f":"IF(J460=\"\",\"\",\"-\")","v":""},null,null,{"$f":"IF(N460=\"\",\"\",IF(N460>P460,1,IF(N460<P460,2,\"x\")))","v":""},"","",""]
[null,null,null,null,null,null,null,null,null,"","","",null,null,"",null,null,"","","",""]
[null,null,null,null,null,null,null,null,null,"","","",null,null,"",null,null,"","","",""]
[null,null,null,null,null,null,null,null,null,"","","",null,null,"",null,null,"","","",""]
[null,null,null,null,null,null,null,null,null,"","","",null,null,"",null,null,"","","",""]
[null,null,null,null,null,null,null,null,null,"","","",null,null,"",null,null,"","","",""]
[null,null,null,null,null,null,null,null,null,"","","",null,null,"",null,null,"","","",""]
[null,null,null,null,null,null,null,null,null,"","","",null,null,"",null,null,"","","",""]
[null,null,null,null,null,null,null,null,null,"","","",null,null,"",null,null,"","","",""]
[null,null,null,null,null,null,null,null,null,"","","",null,null,"",null,null,"","","",""]
[null,null,null,null,null,null,null,null,null,"","","",null,null,"",null,null,"","","",""]
[null,null,null,null,null,null,null,null,null,"","","",null,null,"",null,null,"","","",""]
[null,null,null,null,null,null,null,null,null,"","","",null,null,"",null,null,"","","",""]
[null,null,null,null,null,null,null,null,null,"","","",null,null,"",null,null,"","","",""]
[null,null,null,null,null,null,null,null,null,"","",{"$f":"IFERROR(VLOOKUP(I474,A:B,2,FALSE),\"\")","v":""},null,null,"",null,null,"","","",""]
[null,null,null,null,null,null,null,null,null,"","","",null,null,"",null,null,"","","",""]
[null,null,null,null,null,null,null,null,null,"","","",null,null,"",null,null,"","","",""]
[null,null,null,null,null,null,null,null,null,"","","",null,null,"",null,null,"","","",""]
[null,null,null,null,null,null,null,null,null,"","","",null,null,"",null,null,"","","",""]
[null,null,null,null,null,null,null,null,null,"","","",null,null,"",null,null,"","","",""]
[null,null,null,null,null,null,null,null,null,"","","",null,null,"",null,null,"","","",""]
[null,null,null,null,null,null,null,null,null,"","","",null,null,"",null,null,"","","",""]
[null,null,null,null,null,null,null,null,null,"","","",null,null,"",null,null,"","","",""]
[null,null,null,null,null,null,null,null,null,"","","",null,null,"",null,null,"","","",""]
[null,null,null,null,null,null,null,null,null,"","","",null,null,"",null,null,"","","",""]
[null,null,null,null,null,null,null,null,null,"","","",null,null,"",null,null,"","","",""]
[null,null,null,null,null,null,null,null,null,"","","",null,null,"",null,null,"","","",""]
[null,null,null,null,null,null,null,null,null,"","","",null,null,"",null,null,"","","",""]
[null,null,null,null,null,null,null,null,null,"","","",null,null,"",null,null,"","","",""]
[null,null,null,null,null,null,null,null,null,"","","",null,null,"",null,null,"","","",""]
[null,null,null,null,null,null,null,null,null,"","","",null,null,"",null,null,"","","",""]
[null,null,null,null,null,null,null,null,null,"","","",null,null,"",null,null,"","","",""]
[null,null,null,null,null,null,null,null,null,"","","",null,null,"",null,null,"","","",""]
[null,null,null,null,null,null,null,null,null,"","","",null,null,"",null,null,"","","",""]
[null,null,null,null,null,null,null,null,null,"","","",null,null,"",null,null,"","","",""]
[null,null,null,null,null,null,null,null,null,"","","",null,null,"",null,null,"","","",""]
[null,null,null,null,null,null,null,null,null,"","","",null,null,"",null,null,"","","",""]
[null,null,null,null,null,null,null,null,null,"","","",null,null,"",null,null,"","","",""]
[null,null,null,null,null,null,null,null,null,"","","",null,null,"",null,null,"","","",""]
[null,null,null,null,null,null,null,null,null,"","","",null,null,"",null,null,"","","",""]
[null,null,null,null,null,null,null,null,null,"","","",null,null,"",null,null,"","","",""]
[null,null,null,null,null,null,null,null,null,"","","",null,null,"",null,null,"","","",""]
[null,null,null,null,null,null,null,null,null,"","","",null,null,"",null,null,"","","",""]
[null,null,null,null,null,null,null,null,null,"","","",null,null,"",null,null,"","","",""]
[null,null,null,null,null,null,null,null,null,"","","",null,null,"",null,null,"","","",""]
[null,null,null,null,null,null,null,null,null,"","","",null,null,"",null,null,"","","",""]
[null,null,null,null,null,null,null,null,null,"","","",null,null,"",null,null,"","","",""]
[null,null,null,null,null,null,null,null,null,"","","",null,null,"",null,null,"","","",""]
[null,null,null,null,null,null,null,null,null,"","","",null,null,"",null,null,"","","",""]
[null,null,null,null,null,null,null,null,null,"","","",null,null,"",null,null,"","","",""]
[null,null,null,null,null,null,null,null,null,"","","",null,null,"",null,null,"","","",""]
[null,null,null,null,null,null,null,null,null,"","","",null,null,"",null,null,"","","",""]
[null,null,null,null,null,null,null,null,null,"","","",null,null,"",null,null,"","","",""]
[null,null,null,null,null,null,null,null,null,{"$f":"IFERROR(VLOOKUP(H513,A:B,2,FALSE),\"\")","v":""},"","",null,null,"",null,null,"","","",""]
[null,null,null,null,null,null,null,null,null,"",{"$f":"IF(J514=\"\",\"\",\"-\")","v":""},"",null,null,"",null,null,"","","",""]
[null,null,null,null,null,null,null,null,null,"","","",null,null,"",null,null,"",{"$f":"IF(J515=\"\",\"\",(IF(R515=1,3,IF(R515=\"x\",1,0))))","v":""},{"$f":"IF(J515=\"\",\"\",IF(R515=2,3,IF(R515=\"x\",1,0)))","v":""},{"$f":"IF(R515=\"\",\"\",1)","v":""}]
[null,null,null,null,null,null,null,null,null,"","","",null,null,"",null,null,"","","",""]
[null,null,null,null,null,null,null,null,null,"","","",null,null,"",null,null,"","","",""]
[null,null,null,null,null,null,null,null,null,"","","",null,null,"",null,null,"","","",""]
[null,null,null,null,null,null,null,null,null,"","","",null,null,"",null,null,"","","",""]
[null,null,null,null,null,null,null,null,null,"","","",null,null,"",null,null,"","","",""]
[null,null,null,null,null,null,null,null,null,"","","",null,null,"",null,null,"","","",""]
[null,null,null,null,null,null,null,null,null,"","","",null,null,"",null,null,"","","",""]
[null,null,null,null,null,null,null,null,null,"","","",null,null,"",null,null,"","","",""]
[null,null,null,null,null,null,null,null,null,"","","",null,null,{"$f":"IF(J524=\"\",\"\",\"-\")","v":""},null,null,{"$f":"IF(N524=\"\",\"\",IF(N524>P524,1,IF(N524<P524,2,\"x\")))","v":""},"","",""]
[null,null,null,null,null,null,null,null,null,"","","",null,null,"",null,null,"","","",""]
[null,null,null,null,null,null,null,null,null,"","","",null,null,"",null,null,"","","",""]
[null,null,null,null,null,null,null,null,null,"","","",null,null,"",null,null,"","","",""]
[null,null,null,null,null,null,null,null,null,"","","",null,null,"",null,null,"","","",""]
[null,null,null,null,null,null,null,null,null,"","","",null,null,"",null,null,"","","",""]
[null,null,null,null,null,null,null,null,null,"","","",null,null,"",null,null,"","","",""]
[null,null,null,null,null,null,null,null,null,"","","",null,null,"",null,null,"","","",""]
[null,null,null,null,null,null,null,null,null,"","","",null,null,"",null,null,"","","",""]
[null,null,null,null,null,null,null,null,null,"","","",null,null,"",null,null,"","","",""]
[null,null,null,null,null,null,null,null,null,"","","",null,null,"",null,null,"","","",""]
[null,null,null,null,null,null,null,null,null,"","","",null,null,"",null,null,"","","",""]
[null,null,null,null,null,null,null,null,null,"","","",null,null,"",null,null,"","","",""]
[null,null,null,null,null,null,null,null,null,"","","",null,null,"",null,null,"","","",""]
[null,null,null,null,null,null,null,null,null,"","",{"$f":"IFERROR(VLOOKUP(I538,A:B,2,FALSE),\"\")","v":""},null,null,"",null,null,"","","",""]
[null,null,null,null,null,null,null,null,null,"","","",null,null,"",null,null,"","","",""]
[null,null,null,null,null,null,null,null,null,"","","",null,null,"",null,null,"","","",""]
[null,null,null,null,null,null,null,null,null,"","","",null,null,"",null,null,"","","",""]
[null,null,null,null,null,null,null,null,null,"","","",null,null,"",null,null,"","","",""]
[null,null,null,null,null,null,null,null,null,"","","",null,null,"",null,null,"","","",""]
[null,null,null,null,null,null,null,null,null,"","","",null,null,"",null,null,"","","",""]
[null,null,null,null,null,null,null,null,null,"","","",null,null,"",null,null,"","","",""]
[null,null,null,null,null,null,null,null,null,"","","",null,null,"",null,null,"","","",""]
[null,null,null,null,null,null,null,null,null,"","","",null,null,"",null,null,"","","",""]
[null,null,null,null,null,null,null,null,null,"","","",null,null,"",null,null,"","","",""]
[null,null,null,null,null,null,null,null,null,"","","",null,null,"",null,null,"","","",""]
[null,null,null,null,null,null,null,null,null,"","","",null,null,"",null,null,"","","",""]
[null,null,null,null,null,null,null,null,null,"","","",null,null,"",null,null,"","","",""]
[null,null,null,null,null,null,null,null,null,"","","",null,null,"",null,null,"","","",""]
[null,null,null,null,null,null,null,null,null,"","","",null,null,"",null,null,"","","",""]
[null,null,null,null,null,null,null,null,null,"","","",null,null,"",null,null,"","","",""]
[null,null,null,null,null,null,null,null,null,"","","",null,null,"",null,null,"","","",""]
[null,null,null,null,null,null,null,null,null,"","","",null,null,"",null,null,"","","",""]
[null,null,null,null,null,null,null,null,null,"","","",null,null,"",null,null,"","","",""]
[null,null,null,null,null,null,null,null,null,"","","",null,null,"",null,null,"","","",""]
[null,null,null,null,null,null,null,null,null,"","","",null,null,"",null,null,"","","",""]
[null,null,null,null,null,null,null,null,null,"","","",null,null,"",null,null,"","","",""]
[null,null,null,null,null,null,null,null,null,"","","",null,null,"",null,null,"","","",""]
[null,null,null,null,null,null,null,null,null,"","","",null,null,"",null,null,"","","",""]
[null,null,null,null,null,null,null,null,null,"","","",null,null,"",null,null,"","","",""]
[null,null,null,null,null,null,null,null,null,"","","",null,null,"",null,null,"","","",""]
[null,null,null,null,null,null,null,null,null,"","","",null,null,"",null,null,"","","",""]
[null,null,null,null,null,null,null,null,null,"","","",null,null,"",null,null,"","","",""]
[null,null,null,null,null,null,null,null,null,"","","",null,null,"",null,null,"","","",""]
[null,null,null,null,null,null,null,null,null,"","","",null,null,"",null,null,"","","",""]
[null,null,null,null,null,null,null,null,null,"","","",null,null,"",null,null,"","","",""]
[null,null,null,null,null,null,null,null,null,"","","",null,null,"",null,null,"","","",""]
[null,null,null,null,null,null,null,null,null,"","","",null,null,"",null,null,"","","",""]
[null,null,null,null,null,null,null,null,null,"","","",null,null,"",null,null,"","","",""]
[null,null,null,null,null,null,null,null,null,"","","",null,null,"",null,null,"","","",""]
[null,null,null,null,null,null,null,null,null,"","","",null,null,"",null,null,"","","",""]
[null,null,null,null,null,null,null,null,null,"","","",null,null,"",null,null,"","","",""]
[null,null,null,null,null,null,null,null,null,"","","",null,null,"",null,null,"","","",""]
[null,null,null,null,null,null,null,null,null,{"$f":"IFERROR(VLOOKUP(H577,A:B,2,FALSE),\"\")","v":""},"","",null,null,"",null,null,"","","",""]
[null,null,null,null,null,null,null,null,null,"",{"$f":"IF(J578=\"\",\"\",\"-\")","v":""},"",null,null,"",null,null,"","","",""]
[null,null,null,null,null,null,null,null,null,"","","",null,null,"",null,null,"",{"$f":"IF(J579=\"\",\"\",(IF(R579=1,3,IF(R579=\"x\",1,0))))","v":""},{"$f":"IF(J579=\"\",\"\",IF(R579=2,3,IF(R579=\"x\",1,0)))","v":""},{"$f":"IF(R579=\"\",\"\",1)","v":""}]
[null,null,null,null,null,null,null,null,null,"","","",null,null,"",null,null,"","","",""]
[null,null,null,null,null,null,null,null,null,"","","",null,null,"",null,null,"","","",""]
[null,null,null,null,null,null,null,null,null,"","","",null,null,"",null,null,"","","",""]
[null,null,null,null,null,null,null,null,null,"","","",null,null,"",null,null,"","","",""]
[null,null,null,null,null,null,null,null,null,"","","",null,null,"",null,null,"","","",""]
[null,null,null,null,null,null,null,null,null,"","","",null,null,"",null,null,"","","",""]
[null,null,null,null,null,null,null,null,null,"","","",null,null,"",null,null,"","","",""]
[null,null,null,null,null,null,null,null,null,"","","",null,null,"",null,null,"","","",""]
[null,null,null,null,null,null,null,null,null,"","","",null,null,{"$f":"IF(J588=\"\",\"\",\"-\")","v":""},null,null,{"$f":"IF(N588=\"\",\"\",IF(N588>P588,1,IF(N588<P588,2,\"x\")))","v":""},"","",""]
[null,null,null,null,null,null,null,null,null,"","","",null,null,"",null,null,"","","",""]
[null,null,null,null,null,null,null,null,null,"","","",null,null,"",null,null,"","","",""]
[null,null,null,null,null,null,null,null,null,"","","",null,null,"",null,null,"","","",""]
[null,null,null,null,null,null,null,null,null,"","","",null,null,"",null,null,"","","",""]
[null,null,null,null,null,null,null,null,null,"","","",null,null,"",null,null,"","","",""]
[null,null,null,null,null,null,null,null,null,"","","",null,null,"",null,null,"","","",""]
[null,null,null,null,null,null,null,null,null,"","","",null,null,"",null,null,"","","",""]
[null,null,null,null,null,null,null,null,null,"","","",null,null,"",null,null,"","","",""]
[null,null,null,null,null,null,null,null,null,"","","",null,null,"",null,null,"","","",""]
[null,null,null,null,null,null,null,null,null,"","","",null,null,"",null,null,"","","",""]
[null,null,null,null,null,null,null,null,null,"","","",null,null,"",null,null,"","","",""]
[null,null,null,null,null,null,null,null,null,"","","",null,null,"",null,null,"","","",""]
[null,null,null,null,null,null,null,null,null,"","","",null,null,"",null,null,"","","",""]
[null,null,null,null,null,null,null,null,null,"","",{"$f":"IFERROR(VLOOKUP(I602,A:B,2,FALSE),\"\")","v":""},null,null,"",null,null,"","","",""]
[null,null,null,null,null,null,null,null,null,"","","",null,null,"",null,null,"","","",""]
[null,null,null,null,null,null,null,null,null,"","","",null,null,"",null,null,"","","",""]
[null,null,null,null,null,null,null,null,null,"","","",null,null,"",null,null,"","","",""]
[null,null,null,null,null,null,null,null,null,"","","",null,null,"",null,null,"","","",""]
[null,null,null,null,null,null,null,null,null,"","","",null,null,"",null,null,"","","",""]
[null,null,null,null,null,null,null,null,null,"","","",null,null,"",null,null,"","","",""]
[null,null,null,null,null,null,null,null,null,"","","",null,null,"",null,null,"","","",""]
[null,null,null,null,null,null,null,null,null,"","","",null,null,"",null,null,"","","",""]
[null,null,null,null,null,null,null,null,null,"","","",null,null,"",null,null,"","","",""]
[null,null,null,null,null,null,null,null,null,"","","",null,null,"",null,null,"","","",""]
[null,null,null,null,null,null,null,null,null,"","","",null,null,"",null,null,"","","",""]
[null,null,null,null,null,null,null,null,null,"","","",null,null,"",null,null,"","","",""]
[null,null,null,null,null,null,null,null,null,"","","",null,null,"",null,null,"","","",""]
[null,null,null,null,null,null,null,null,null,"","","",null,null,"",null,null,"","","",""]
[null,null,null,null,null,null,null,null,null,"","","",null,null,"",null,null,"","","",""]
[null,null,null,null,null,null,null,null,null,"","","",null,null,"",null,null,"","","",""]
[null,null,null,null,null,null,null,null,null,"","","",null,null,"",null,null,"","","",""]
[null,null,null,null,null,null,null,null,null,"","","",null,null,"",null,null,"","","",""]
[null,null,null,null,null,null,null,null,null,"","","",null,null,"",null,null,"","","",""]
[null,null,null,null,null,null,null,null,null,"","","",null,null,"",null,null,"","","",""]
[null,null,null,null,null,null,null,null,null,"","","",null,null,"",null,null,"","","",""]
[null,null,null,null,null,null,null,null,null,"","","",null,null,"",null,null,"","","",""]
[null,null,null,null,null,null,null,null,null,"","","",null,null,"",null,null,"","","",""]
[null,null,null,null,null,null,null,null,null,"","","",null,null,"",null,null,"","","",""]
[null,null,null,null,null,null,null,null,null,"","","",null,null,"",null,null,"","","",""]
[null,null,null,null,null,null,null,null,null,"","","",null,null,"",null,null,"","","",""]
[null,null,null,null,null,null,null,null,null,"","","",null,null,"",null,null,"","","",""]
[null,null,null,null,null,null,null,null,null,"","","",null,null,"",null,null,"","","",""]
[null,null,null,null,null,null,null,null,null,"","","",null,null,"",null,null,"","","",""]
[null,null,null,null,null,null,null,null,null,"","","",null,null,"",null,null,"","","",""]
[null,null,null,null,null,null,null,null,null,"","","",null,null,"",null,null,"","","",""]
[null,null,null,null,null,null,null,null,null,"","","",null,null,"",null,null,"","","",""]
[null,null,null,null,null,null,null,null,null,"","","",null,null,"",null,null,"","","",""]
[null,null,null,null,null,null,null,null,null,"","","",null,null,"",null,null,"","","",""]
[null,null,null,null,null,null,null,null,null,"","","",null,null,"",null,null,"","","",""]
[null,null,null,null,null,null,null,null,null,"","","",null,null,"",null,null,"","","",""]
[null,null,null,null,null,null,null,null,null,"","","",null,null,"",null,null,"","","",""]
[null,null,null,null,null,null,null,null,null,"","","",null,null,"",null,null,"","","",""]
[null,null,null,null,null,null,null,null,null,{"$f":"IFERROR(VLOOKUP(H641,A:B,2,FALSE),\"\")","v":""},"","",null,null,"",null,null,"","","",""]
[null,null,null,null,null,null,null,null,null,"",{"$f":"IF(J642=\"\",\"\",\"-\")","v":""},"",null,null,"",null,null,"","","",""]
[null,null,null,null,null,null,null,null,null,"","","",null,null,"",null,null,"",{"$f":"IF(J643=\"\",\"\",(IF(R643=1,3,IF(R643=\"x\",1,0))))","v":""},{"$f":"IF(J643=\"\",\"\",IF(R643=2,3,IF(R643=\"x\",1,0)))","v":""},{"$f":"IF(R643=\"\",\"\",1)","v":""}]
[null,null,null,null,null,null,null,null,null,"","","",null,null,"",null,null,"","","",""]
[null,null,null,null,null,null,null,null,null,"","","",null,null,"",null,null,"","","",""]
[null,null,null,null,null,null,null,null,null,"","","",null,null,"",null,null,"","","",""]
[null,null,null,null,null,null,null,null,null,"","","",null,null,"",null,null,"","","",""]
[null,null,null,null,null,null,null,null,null,"","","",null,null,"",null,null,"","","",""]
[null,null,null,null,null,null,null,null,null,"","","",null,null,"",null,null,"","","",""]
[null,null,null,null,null,null,null,null,null,"","","",null,null,"",null,null,"","","",""]
[null,null,null,null,null,null,null,null,null,"","","",null,null,"",null,null,"","","",""]
[null,null,null,null,null,null,null,null,null,"","","",null,null,{"$f":"IF(J652=\"\",\"\",\"-\")","v":""},null,null,{"$f":"IF(N652=\"\",\"\",IF(N652>P652,1,IF(N652<P652,2,\"x\")))","v":""},"","",""]
[null,null,null,null,null,null,null,null,null,"","","",null,null,"",null,null,"","","",""]
[null,null,null,null,null,null,null,null,null,"","","",null,null,"",null,null,"","","",""]
[null,null,null,null,null,null,null,null,null,"","","",null,null,"",null,null,"","","",""]
[null,null,null,null,null,null,null,null,null,"","","",null,null,"",null,null,"","","",""]
[null,null,null,null,null,null,null,null,null,"","","",null,null,"",null,null,"","","",""]
[null,null,null,null,null,null,null,null,null,"","","",null,null,"",null,null,"","","",""]
[null,null,null,null,null,null,null,null,null,"","","",null,null,"",null,null,"","","",""]
[null,null,null,null,null,null,null,null,null,"","","",null,null,"",null,null,"","","",""]
[null,null,null,null,null,null,null,null,null,"","","",null,null,"",null,null,"","","",""]
[null,null,null,null,null,null,null,null,null,"","","",null,null,"",null,null,"","","",""]
[null,null,null,null,null,null,null,null,null,"","","",null,null,"",null,null,"","","",""]
[null,null,null,null,null,null,null,null,null,"","","",null,null,"",null,null,"","","",""]
[null,null,null,null,null,null,null,null,null,"","","",null,null,"",null,null,"","","",""]
[null,null,null,null,null,null,null,null,null,"","",{"$f":"IFERROR(VLOOKUP(I666,A:B,2,FALSE),\"\")","v":""},null,null,"",null,null,"","","",""]
[null,null,null,null,null,null,null,null,null,"","","",null,null,"",null,null,"","","",""]
[null,null,null,null,null,null,null,null,null,"","","",null,null,"",null,null,"","","",""]
[null,null,null,null,null,null,null,null,null,"","","",null,null,"",null,null,"","","",""]
[null,null,null,null,null,null,null,null,null,"","","",null,null,"",null,null,"","","",""]
[null,null,null,null,null,null,null,null,null,"","","",null,null,"",null,null,"","","",""]
[null,null,null,null,null,null,null,null,null,"","","",null,null,"",null,null,"","","",""]
[null,null,null,null,null,null,null,null,null,"","","",null,null,"",null,null,"","","",""]
[null,null,null,null,null,null,null,null,null,"","","",null,null,"",null,null,"","","",""]
[null,null,null,null,null,null,null,null,null,"","","",null,null,"",null,null,"","","",""]
[null,null,null,null,null,null,null,null,null,"","","",null,null,"",null,null,"","","",""]
[null,null,null,null,null,null,null,null,null,"","","",null,null,"",null,null,"","","",""]
[null,null,null,null,null,null,null,null,null,"","","",null,null,"",null,null,"","","",""]
[null,null,null,null,null,null,null,null,null,"","","",null,null,"",null,null,"","","",""]
[null,null,null,null,null,null,null,null,null,"","","",null,null,"",null,null,"","","",""]
[null,null,null,null,null,null,null,null,null,"","","",null,null,"",null,null,"","","",""]
[null,null,null,null,null,null,null,null,null,"","","",null,null,"",null,null,"","","",""]
[null,null,null,null,null,null,null,null,null,"","","",null,null,"",null,null,"","","",""]
[null,null,null,null,null,null,null,null,null,"","","",null,null,"",null,null,"","","",""]
[null,null,null,null,null,null,null,null,null,"","","",null,null,"",null,null,"","","",""]
[null,null,null,null,null,null,null,null,null,"","","",null,null,"",null,null,"","","",""]
[null,null,null,null,null,null,null,null,null,"","","",null,null,"",null,null,"","","",""]
[null,null,null,null,null,null,null,null,null,"","","",null,null,"",null,null,"","","",""]
[null,null,null,null,null,null,null,null,null,"","","",null,null,"",null,null,"","","",""]
[null,null,null,null,null,null,null,null,null,"","","",null,null,"",null,null,"","","",""]
[null,null,null,null,null,null,null,null,null,"","","",null,null,"",null,null,"","","",""]
[null,null,null,null,null,null,null,null,null,"","","",null,null,"",null,null,"","","",""]
[null,null,null,null,null,null,null,null,null,"","","",null,null,"",null,null,"","","",""]
[null,null,null,null,null,null,null,null,null,"","","",null,null,"",null,null,"","","",""]
[null,null,null,null,null,null,null,null,null,"","","",null,null,"",null,null,"","","",""]
[null,null,null,null,null,null,null,null,null,"","","",null,null,"",null,null,"","","",""]
[null,null,null,null,null,null,null,null,null,"","","",null,null,"",null,null,"","","",""]
[null,null,null,null,null,null,null,null,null,"","","",null,null,"",null,null,"","","",""]
[null,null,null,null,null,null,null,null,null,"","","",null,null,"",null,null,"","","",""]
[null,null,null,null,null,null,null,null,null,"","","",null,null,"",null,null,"","","",""]
[null,null,null,null,null,null,null,null,null,"","","",null,null,"",null,null,"","","",""]
[null,null,null,null,null,null,null,null,null,"","","",null,null,"",null,null,"","","",""]
[null,null,null,null,null,null,null,null,null,"","","",null,null,"",null,null,"","","",""]
[null,null,null,null,null,null,null,null,null,"","","",null,null,"",null,null,"","","",""]
[null,null,null,null,null,null,null,null,null,{"$f":"IFERROR(VLOOKUP(H705,A:B,2,FALSE),\"\")","v":""},"","",null,null,"",null,null,"","","",""]
[null,null,null,null,null,null,null,null,null,"",{"$f":"IF(J706=\"\",\"\",\"-\")","v":""},"",null,null,"",null,null,"","","",""]
[null,null,null,null,null,null,null,null,null,"","","",null,null,"",null,null,"",{"$f":"IF(J707=\"\",\"\",(IF(R707=1,3,IF(R707=\"x\",1,0))))","v":""},{"$f":"IF(J707=\"\",\"\",IF(R707=2,3,IF(R707=\"x\",1,0)))","v":""},{"$f":"IF(R707=\"\",\"\",1)","v":""}]
[null,null,null,null,null,null,null,null,null,"","","",null,null,"",null,null,"","","",""]
[null,null,null,null,null,null,null,null,null,"","","",null,null,"",null,null,"","","",""]
[null,null,null,null,null,null,null,null,null,"","","",null,null,"",null,null,"","","",""]
[null,null,null,null,null,null,null,null,null,"","","",null,null,"",null,null,"","","",""]
[null,null,null,null,null,null,null,null,null,"","","",null,null,"",null,null,"","","",""]
[null,null,null,null,null,null,null,null,null,"","","",null,null,"",null,null,"","","",""]
[null,null,null,null,null,null,null,null,null,"","","",null,null,"",null,null,"","","",""]
[null,null,null,null,null,null,null,null,null,"","","",null,null,"",null,null,"","","",""]
[null,null,null,null,null,null,null,null,null,"","","",null,null,{"$f":"IF(J716=\"\",\"\",\"-\")","v":""},null,null,{"$f":"IF(N716=\"\",\"\",IF(N716>P716,1,IF(N716<P716,2,\"x\")))","v":""},"","",""]
[null,null,null,null,null,null,null,null,null,"","","",null,null,"",null,null,"","","",""]
[null,null,null,null,null,null,null,null,null,"","","",null,null,"",null,null,"","","",""]
[null,null,null,null,null,null,null,null,null,"","","",null,null,"",null,null,"","","",""]
[null,null,null,null,null,null,null,null,null,"","","",null,null,"",null,null,"","","",""]
[null,null,null,null,null,null,null,null,null,"","","",null,null,"",null,null,"","","",""]
[null,null,null,null,null,null,null,null,null,"","","",null,null,"",null,null,"","","",""]
[null,null,null,null,null,null,null,null,null,"","","",null,null,"",null,null,"","","",""]
[null,null,null,null,null,null,null,null,null,"","","",null,null,"",null,null,"","","",""]
[null,null,null,null,null,null,null,null,null,"","","",null,null,"",null,null,"","","",""]
[null,null,null,null,null,null,null,null,null,"","","",null,null,"",null,null,"","","",""]
[null,null,null,null,null,null,null,null,null,"","","",null,null,"",null,null,"","","",""]
[null,null,null,null,null,null,null,null,null,"","","",null,null,"",null,null,"","","",""]
[null,null,null,null,null,null,null,null,null,"","","",null,null,"",null,null,"","","",""]
[null,null,null,null,null,null,null,null,null,"","",{"$f":"IFERROR(VLOOKUP(I730,A:B,2,FALSE),\"\")","v":""},null,null,"",null,null,"","","",""]
[null,null,null,null,null,null,null,null,null,"","","",null,null,"",null,null,"","","",""]
[null,null,null,null,null,null,null,null,null,"","","",null,null,"",null,null,"","","",""]
[null,null,null,null,null,null,null,null,null,"","","",null,null,"",null,null,"","","",""]
[null,null,null,null,null,null,null,null,null,"","","",null,null,"",null,null,"","","",""]
[null,null,null,null,null,null,null,null,null,"","","",null,null,"",null,null,"","","",""]
[null,null,null,null,null,null,null,null,null,"","","",null,null,"",null,null,"","","",""]
[null,null,null,null,null,null,null,null,null,"","","",null,null,"",null,null,"","","",""]
[null,null,null,null,null,null,null,null,null,"","","",null,null,"",null,null,"","","",""]
[null,null,null,null,null,null,null,null,null,"","","",null,null,"",null,null,"","","",""]
[null,null,null,null,null,null,null,null,null,"","","",null,null,"",null,null,"","","",""]
[null,null,null,null,null,null,null,null,null,"","","",null,null,"",null,null,"","","",""]
[null,null,null,null,null,null,null,null,null,"","","",null,null,"",null,null,"","","",""]
[null,null,null,null,null,null,null,null,null,"","","",null,null,"",null,null,"","","",""]
[null,null,null,null,null,null,null,null,null,"","","",null,null,"",null,null,"","","",""]
[null,null,null,null,null,null,null,null,null,"","","",null,null,"",null,null,"","","",""]
[null,null,null,null,null,null,null,null,null,"","","",null,null,"",null,null,"","","",""]
[null,null,null,null,null,null,null,null,null,"","","",null,null,"",null,null,"","","",""]
[null,null,null,null,null,null,null,null,null,"","","",null,null,"",null,null,"","","",""]
[null,null,null,null,null,null,null,null,null,"","","",null,null,"",null,null,"","","",""]
[null,null,null,null,null,null,null,null,null,"","","",null,null,"",null,null,"","","",""]
[null,null,null,null,null,null,null,null,null,"","","",null,null,"",null,null,"","","",""]
[null,null,null,null,null,null,null,null,null,"","","",null,null,"",null,null,"","","",""]
[null,null,null,null,null,null,null,null,null,"","","",null,null,"",null,null,"","","",""]
[null,null,null,null,null,null,null,null,null,"","","",null,null,"",null,null,"","","",""]
[null,null,null,null,null,null,null,null,null,"","","",null,null,"",null,null,"","","",""]
[null,null,null,null,null,null,null,null,null,"","","",null,null,"",null,null,"","","",""]
[null,null,null,null,null,null,null,null,null,"","","",null,null,"",null,null,"","","",""]
[null,null,null,null,null,null,null,null,null,"","","",null,null,"",null,null,"","","",""]
[null,null,null,null,null,null,null,null,null,"","","",null,null,"",null,null,"","","",""]
[null,null,null,null,null,null,null,null,null,"","","",null,null,"",null,null,"","","",""]
[null,null,null,null,null,null,null,null,null,"","","",null,null,"",null,null,"","","",""]
[null,null,null,null,null,null,null,null,null,"","","",null,null,"",null,null,"","","",""]
[null,null,null,null,null,null,null,null,null,"","","",null,null,"",null,null,"","","",""]
[null,null,null,null,null,null,null,null,null,"","","",null,null,"",null,null,"","","",""]
[null,null,null,null,null,null,null,null,null,"","","",null,null,"",null,null,"","","",""]
[null,null,null,null,null,null,null,null,null,"","","",null,null,"",null,null,"","","",""]
[null,null,null,null,null,null,null,null,null,"","","",null,null,"",null,null,"","","",""]
[null,null,null,null,null,null,null,null,null,"","","",null,null,"",null,null,"","","",""]
[null,null,null,null,null,null,null,null,null,{"$f":"IFERROR(VLOOKUP(H769,A:B,2,FALSE),\"\")","v":""},"","",null,null,"",null,null,"","","",""]
[null,null,null,null,null,null,null,null,null,"",{"$f":"IF(J770=\"\",\"\",\"-\")","v":""},"",null,null,"",null,null,"","","",""]
[null,null,null,null,null,null,null,null,null,"","","",null,null,"",null,null,"",{"$f":"IF(J771=\"\",\"\",(IF(R771=1,3,IF(R771=\"x\",1,0))))","v":""},{"$f":"IF(J771=\"\",\"\",IF(R771=2,3,IF(R771=\"x\",1,0)))","v":""},{"$f":"IF(R771=\"\",\"\",1)","v":""}]
[null,null,null,null,null,null,null,null,null,"","","",null,null,"",null,null,"","","",""]
[null,null,null,null,null,null,null,null,null,"","","",null,null,"",null,null,"","","",""]
[null,null,null,null,null,null,null,null,null,"","","",null,null,"",null,null,"","","",""]
[null,null,null,null,null,null,null,null,null,"","","",null,null,"",null,null,"","","",""]
[null,null,null,null,null,null,null,null,null,"","","",null,null,"",null,null,"","","",""]
[null,null,null,null,null,null,null,null,null,"","","",null,null,"",null,null,"","","",""]
[null,null,null,null,null,null,null,null,null,"","","",null,null,"",null,null,"","","",""]
[null,null,null,null,null,null,null,null,null,"","","",null,null,"",null,null,"","","",""]
[null,null,null,null,null,null,null,null,null,"","","",null,null,{"$f":"IF(J780=\"\",\"\",\"-\")","v":""},null,null,{"$f":"IF(N780=\"\",\"\",IF(N780>P780,1,IF(N780<P780,2,\"x\")))","v":""},"","",""]
[null,null,null,null,null,null,null,null,null,"","","",null,null,"",null,null,"","","",""]
[null,null,null,null,null,null,null,null,null,"","","",null,null,"",null,null,"","","",""]
[null,null,null,null,null,null,null,null,null,"","","",null,null,"",null,null,"","","",""]
[null,null,null,null,null,null,null,null,null,"","","",null,null,"",null,null,"","","",""]
[null,null,null,null,null,null,null,null,null,"","","",null,null,"",null,null,"","","",""]
[null,null,null,null,null,null,null,null,null,"","","",null,null,"",null,null,"","","",""]
[null,null,null,null,null,null,null,null,null,"","","",null,null,"",null,null,"","","",""]
[null,null,null,null,null,null,null,null,null,"","","",null,null,"",null,null,"","","",""]
[null,null,null,null,null,null,null,null,null,"","","",null,null,"",null,null,"","","",""]
[null,null,null,null,null,null,null,null,null,"","","",null,null,"",null,null,"","","",""]
[null,null,null,null,null,null,null,null,null,"","","",null,null,"",null,null,"","","",""]
[null,null,null,null,null,null,null,null,null,"","","",null,null,"",null,null,"","","",""]
[null,null,null,null,null,null,null,null,null,"","","",null,null,"",null,null,"","","",""]
[null,null,null,null,null,null,null,null,null,"","",{"$f":"IFERROR(VLOOKUP(I794,A:B,2,FALSE),\"\")","v":""},null,null,"",null,null,"","","",""]
[null,null,null,null,null,null,null,null,null,"","","",null,null,"",null,null,"","","",""]
[null,null,null,null,null,null,null,null,null,"","","",null,null,"",null,null,"","","",""]
[null,null,null,null,null,null,null,null,null,"","","",null,null,"",null,null,"","","",""]
[null,null,null,null,null,null,null,null,null,"","","",null,null,"",null,null,"","","",""]
[null,null,null,null,null,null,null,null,null,"","","",null,null,"",null,null,"","","",""]
[null,null,null,null,null,null,null,null,null,"","","",null,null,"",null,null,"","","",""]
[null,null,null,null,null,null,null,null,null,"","","",null,null,"",null,null,"","","",""]
[null,null,null,null,null,null,null,null,null,"","","",null,null,"",null,null,"","","",""]
[null,null,null,null,null,null,null,null,null,"","","",null,null,"",null,null,"","","",""]
[null,null,null,null,null,null,null,null,null,"","","",null,null,"",null,null,"","","",""]
[null,null,null,null,null,null,null,null,null,"","","",null,null,"",null,null,"","","",""]
[null,null,null,null,null,null,null,null,null,"","","",null,null,"",null,null,"","","",""]
[null,null,null,null,null,null,null,null,null,"","","",null,null,"",null,null,"","","",""]
[null,null,null,null,null,null,null,null,null,"","","",null,null,"",null,null,"","","",""]
[null,null,null,null,null,null,null,null,null,"","","",null,null,"",null,null,"","","",""]
[null,null,null,null,null,null,null,null,null,"","","",null,null,"",null,null,"","","",""]
[null,null,null,null,null,null,null,null,null,"","","",null,null,"",null,null,"","","",""]
[null,null,null,null,null,null,null,null,null,"","","",null,null,"",null,null,"","","",""]
[null,null,null,null,null,null,null,null,null,"","","",null,null,"",null,null,"","","",""]
[null,null,null,null,null,null,null,null,null,"","","",null,null,"",null,null,"","","",""]
[null,null,null,null,null,null,null,null,null,"","","",null,null,"",null,null,"","","",""]
[null,null,null,null,null,null,null,null,null,"","","",null,null,"",null,null,"","","",""]
[null,null,null,null,null,null,null,null,null,"","","",null,null,"",null,null,"","","",""]
[null,null,null,null,null,null,null,null,null,"","","",null,null,"",null,null,"","","",""]
[null,null,null,null,null,null,null,null,null,"","","",null,null,"",null,null,"","","",""]
[null,null,null,null,null,null,null,null,null,"","","",null,null,"",null,null,"","","",""]
[null,null,null,null,null,null,null,null,null,"","","",null,null,"",null,null,"","","",""]
[null,null,null,null,null,null,null,null,null,"","","",null,null,"",null,null,"","","",""]
[null,null,null,null,null,null,null,null,null,"","","",null,null,"",null,null,"","","",""]
[null,null,null,null,null,null,null,null,null,"","","",null,null,"",null,null,"","","",""]
[null,null,null,null,null,null,null,null,null,"","","",null,null,"",null,null,"","","",""]
[null,null,null,null,null,null,null,null,null,"","","",null,null,"",null,null,"","","",""]
[null,null,null,null,null,null,null,null,null,"","","",null,null,"",null,null,"","","",""]
[null,null,null,null,null,null,null,null,null,"","","",null,null,"",null,null,"","","",""]
[null,null,null,null,null,null,null,null,null,"","","",null,null,"",null,null,"","","",""]
[null,null,null,null,null,null,null,null,null,"","","",null,null,"",null,null,"","","",""]
[null,null,null,null,null,null,null,null,null,"","","",null,null,"",null,null,"","","",""]
[null,null,null,null,null,null,null,null,null,"","","",null,null,"",null,null,"","","",""]
[null,null,null,null,null,null,null,null,null,{"$f":"IFERROR(VLOOKUP(H833,A:B,2,FALSE),\"\")","v":""},"","",null,null,"",null,null,"","","",""]
[null,null,null,null,null,null,null,null,null,"",{"$f":"IF(J834=\"\",\"\",\"-\")","v":""},"",null,null,"",null,null,"","","",""]
[null,null,null,null,null,null,null,null,null,"","","",null,null,"",null,null,"",{"$f":"IF(J835=\"\",\"\",(IF(R835=1,3,IF(R835=\"x\",1,0))))","v":""},{"$f":"IF(J835=\"\",\"\",IF(R835=2,3,IF(R835=\"x\",1,0)))","v":""},{"$f":"IF(R835=\"\",\"\",1)","v":""}]
[null,null,null,null,null,null,null,null,null,"","","",null,null,"",null,null,"","","",""]
[null,null,null,null,null,null,null,null,null,"","","",null,null,"",null,null,"","","",""]
[null,null,null,null,null,null,null,null,null,"","","",null,null,"",null,null,"","","",""]
[null,null,null,null,null,null,null,null,null,"","","",null,null,"",null,null,"","","",""]
[null,null,null,null,null,null,null,null,null,"","","",null,null,"",null,null,"","","",""]
[null,null,null,null,null,null,null,null,null,"","","",null,null,"",null,null,"","","",""]
[null,null,null,null,null,null,null,null,null,"","","",null,null,"",null,null,"","","",""]
[null,null,null,null,null,null,null,null,null,"","","",null,null,"",null,null,"","","",""]
[null,null,null,null,null,null,null,null,null,"","","",null,null,{"$f":"IF(J844=\"\",\"\",\"-\")","v":""},null,null,{"$f":"IF(N844=\"\",\"\",IF(N844>P844,1,IF(N844<P844,2,\"x\")))","v":""},"","",""]
[null,null,null,null,null,null,null,null,null,"","","",null,null,"",null,null,"","","",""]
[null,null,null,null,null,null,null,null,null,"","","",null,null,"",null,null,"","","",""]
[null,null,null,null,null,null,null,null,null,"","","",null,null,"",null,null,"","","",""]
[null,null,null,null,null,null,null,null,null,"","","",null,null,"",null,null,"","","",""]
[null,null,null,null,null,null,null,null,null,"","","",null,null,"",null,null,"","","",""]
[null,null,null,null,null,null,null,null,null,"","","",null,null,"",null,null,"","","",""]
[null,null,null,null,null,null,null,null,null,"","","",null,null,"",null,null,"","","",""]
[null,null,null,null,null,null,null,null,null,"","","",null,null,"",null,null,"","","",""]
[null,null,null,null,null,null,null,null,null,"","","",null,null,"",null,null,"","","",""]
[null,null,null,null,null,null,null,null,null,"","","",null,null,"",null,null,"","","",""]
[null,null,null,null,null,null,null,null,null,"","","",null,null,"",null,null,"","","",""]
[null,null,null,null,null,null,null,null,null,"","","",null,null,"",null,null,"","","",""]
[null,null,null,null,null,null,null,null,null,"","","",null,null,"",null,null,"","","",""]
[null,null,null,null,null,null,null,null,null,"","",{"$f":"IFERROR(VLOOKUP(I858,A:B,2,FALSE),\"\")","v":""},null,null,"",null,null,"","","",""]
[null,null,null,null,null,null,null,null,null,"","","",null,null,"",null,null,"","","",""]
[null,null,null,null,null,null,null,null,null,"","","",null,null,"",null,null,"","","",""]
[null,null,null,null,null,null,null,null,null,"","","",null,null,"",null,null,"","","",""]
[null,null,null,null,null,null,null,null,null,"","","",null,null,"",null,null,"","","",""]
[null,null,null,null,null,null,null,null,null,"","","",null,null,"",null,null,"","","",""]
[null,null,null,null,null,null,null,null,null,"","","",null,null,"",null,null,"","","",""]
[null,null,null,null,null,null,null,null,null,"","","",null,null,"",null,null,"","","",""]
[null,null,null,null,null,null,null,null,null,"","","",null,null,"",null,null,"","","",""]
[null,null,null,null,null,null,null,null,null,"","","",null,null,"",null,null,"","","",""]
[null,null,null,null,null,null,null,null,null,"","","",null,null,"",null,null,"","","",""]
[null,null,null,null,null,null,null,null,null,"","","",null,null,"",null,null,"","","",""]
[null,null,null,null,null,null,null,null,null,"","","",null,null,"",null,null,"","","",""]
[null,null,null,null,null,null,null,null,null,"","","",null,null,"",null,null,"","","",""]
[null,null,null,null,null,null,null,null,null,"","","",null,null,"",null,null,"","","",""]
[null,null,null,null,null,null,null,null,null,"","","",null,null,"",null,null,"","","",""]
[null,null,null,null,null,null,null,null,null,"","","",null,null,"",null,null,"","","",""]
[null,null,null,null,null,null,null,null,null,"","","",null,null,"",null,null,"","","",""]
[null,null,null,null,null,null,null,null,null,"","","",null,null,"",null,null,"","","",""]
[null,null,null,null,null,null,null,null,null,"","","",null,null,"",null,null,"","","",""]
[null,null,null,null,null,null,null,null,null,"","","",null,null,"",null,null,"","","",""]
[null,null,null,null,null,null,null,null,null,"","","",null,null,"",null,null,"","","",""]
[null,null,null,null,null,null,null,null,null,"","","",null,null,"",null,null,"","","",""]
[null,null,null,null,null,null,null,null,null,"","","",null,null,"",null,null,"","","",""]
[null,null,null,null,null,null,null,null,null,"","","",null,null,"",null,null,"","","",""]
[null,null,null,null,null,null,null,null,null,"","","",null,null,"",null,null,"","","",""]
[null,null,null,null,null,null,null,null,null,"","","",null,null,"",null,null,"","","",""]
[null,null,null,null,null,null,null,null,null,"","","",null,null,"",null,null,"","","",""]
[null,null,null,null,null,null,null,null,null,"","","",null,null,"",null,null,"","","",""]
[null,null,null,null,null,null,null,null,null,"","","",null,null,"",null,null,"","","",""]
[null,null,null,null,null,null,null,null,null,"","","",null,null,"",null,null,"","","",""]
[null,null,null,null,null,null,null,null,null,"","","",null,null,"",null,null,"","","",""]
[null,null,null,null,null,null,null,null,null,"","","",null,null,"",null,null,"","","",""]
[null,null,null,null,null,null,null,null,null,"","","",null,null,"",null,null,"","","",""]
[null,null,null,null,null,null,null,null,null,"","","",null,null,"",null,null,"","","",""]
[null,null,null,null,null,null,null,null,null,"","","",null,null,"",null,null,"","","",""]
[null,null,null,null,null,null,null,null,null,"","","",null,null,"",null,null,"","","",""]
[null,null,null,null,null,null,null,null,null,"","","",null,null,"",null,null,"","","",""]
[null,null,null,null,null,null,null,null,null,"","","",null,null,"",null,null,"","","",""]
[null,null,null,null,null,null,null,null,null,{"$f":"IFERROR(VLOOKUP(H897,A:B,2,FALSE),\"\")","v":""},"","",null,null,"",null,null,"","","",""]
[null,null,null,null,null,null,null,null,null,"",{"$f":"IF(J898=\"\",\"\",\"-\")","v":""},"",null,null,"",null,null,"","","",""]
[null,null,null,null,null,null,null,null,null,"","","",null,null,"",null,null,"",{"$f":"IF(J899=\"\",\"\",(IF(R899=1,3,IF(R899=\"x\",1,0))))","v":""},{"$f":"IF(J899=\"\",\"\",IF(R899=2,3,IF(R899=\"x\",1,0)))","v":""},{"$f":"IF(R899=\"\",\"\",1)","v":""}]
[null,null,null,null,null,null,null,null,null,"","","",null,null,"",null,null,"","","",""]
[null,null,null,null,null,null,null,null,null,"","","",null,null,"",null,null,"","","",""]
[null,null,null,null,null,null,null,null,null,"","","",null,null,"",null,null,"","","",""]
[null,null,null,null,null,null,null,null,null,"","","",null,null,"",null,null,"","","",""]
[null,null,null,null,null,null,null,null,null,"","","",null,null,"",null,null,"","","",""]
[null,null,null,null,null,null,null,null,null,"","","",null,null,"",null,null,"","","",""]
[null,null,null,null,null,null,null,null,null,"","","",null,null,"",null,null,"","","",""]
[null,null,null,null,null,null,null,null,null,"","","",null,null,"",null,null,"","","",""]
[null,null,null,null,null,null,null,null,null,"","","",null,null,{"$f":"IF(J908=\"\",\"\",\"-\")","v":""},null,null,{"$f":"IF(N908=\"\",\"\",IF(N908>P908,1,IF(N908<P908,2,\"x\")))","v":""},"","",""]
[null,null,null,null,null,null,null,null,null,"","","",null,null,"",null,null,"","","",""]
[null,null,null,null,null,null,null,null,null,"","","",null,null,"",null,null,"","","",""]
[null,null,null,null,null,null,null,null,null,"","","",null,null,"",null,null,"","","",""]
[null,null,null,null,null,null,null,null,null,"","","",null,null,"",null,null,"","","",""]
[null,null,null,null,null,null,null,null,null,"","","",null,null,"",null,null,"","","",""]
[null,null,null,null,null,null,null,null,null,"","","",null,null,"",null,null,"","","",""]
[null,null,null,null,null,null,null,null,null,"","","",null,null,"",null,null,"","","",""]
[null,null,null,null,null,null,null,null,null,"","","",null,null,"",null,null,"","","",""]
[null,null,null,null,null,null,null,null,null,"","","",null,null,"",null,null,"","","",""]
[null,null,null,null,null,null,null,null,null,"","","",null,null,"",null,null,"","","",""]
[null,null,null,null,null,null,null,null,null,"","","",null,null,"",null,null,"","","",""]
[null,null,null,null,null,null,null,null,null,"","","",null,null,"",null,null,"","","",""]
[null,null,null,null,null,null,null,null,null,"","","",null,null,"",null,null,"","","",""]
[null,null,null,null,null,null,null,null,null,"","",{"$f":"IFERROR(VLOOKUP(I922,A:B,2,FALSE),\"\")","v":""},null,null,"",null,null,"","","",""]
[null,null,null,null,null,null,null,null,null,"","","",null,null,"",null,null,"","","",""]
[null,null,null,null,null,null,null,null,null,"","","",null,null,"",null,null,"","","",""]
[null,null,null,null,null,null,null,null,null,"","","",null,null,"",null,null,"","","",""]
[null,null,null,null,null,null,null,null,null,"","","",null,null,"",null,null,"","","",""]
[null,null,null,null,null,null,null,null,null,"","","",null,null,"",null,null,"","","",""]
[null,null,null,null,null,null,null,null,null,"","","",null,null,"",null,null,"","","",""]
[null,null,null,null,null,null,null,null,null,"","","",null,null,"",null,null,"","","",""]
[null,null,null,null,null,null,null,null,null,"","","",null,null,"",null,null,"","","",""]
[null,null,null,null,null,null,null,null,null,"","","",null,null,"",null,null,"","","",""]
[null,null,null,null,null,null,null,null,null,"","","",null,null,"",null,null,"","","",""]
[null,null,null,null,null,null,null,null,null,"","","",null,null,"",null,null,"","","",""]
[null,null,null,null,null,null,null,null,null,"","","",null,null,"",null,null,"","","",""]
[null,null,null,null,null,null,null,null,null,"","","",null,null,"",null,null,"","","",""]
[null,null,null,null,null,null,null,null,null,"","","",null,null,"",null,null,"","","",""]
[null,null,null,null,null,null,null,null,null,"","","",null,null,"",null,null,"","","",""]
[null,null,null,null,null,null,null,null,null,"","","",null,null,"",null,null,"","","",""]
[null,null,null,null,null,null,null,null,null,"","","",null,null,"",null,null,"","","",""]
[null,null,null,null,null,null,null,null,null,"","","",null,null,"",null,null,"","","",""]
[null,null,null,null,null,null,null,null,null,"","","",null,null,"",null,null,"","","",""]
[null,null,null,null,null,null,null,null,null,"","","",null,null,"",null,null,"","","",""]
[null,null,null,null,null,null,null,null,null,"","","",null,null,"",null,null,"","","",""]
[null,null,null,null,null,null,null,null,null,"","","",null,null,"",null,null,"","","",""]
[null,null,null,null,null,null,null,null,null,"","","",null,null,"",null,null,"","","",""]
[null,null,null,null,null,null,null,null,null,"","","",null,null,"",null,null,"","","",""]
[null,null,null,null,null,null,null,null,null,"","","",null,null,"",null,null,"","","",""]
[null,null,null,null,null,null,null,null,null,"","","",null,null,"",null,null,"","","",""]
[null,null,null,null,null,null,null,null,null,"","","",null,null,"",null,null,"","","",""]
[null,null,null,null,null,null,null,null,null,"","","",null,null,"",null,null,"","","",""]
[null,null,null,null,null,null,null,null,null,"","","",null,null,"",null,null,"","","",""]
[null,null,null,null,null,null,null,null,null,"","","",null,null,"",null,null,"","","",""]
[null,null,null,null,null,null,null,null,null,"","","",null,null,"",null,null,"","","",""]
[null,null,null,null,null,null,null,null,null,"","","",null,null,"",null,null,"","","",""]
[null,null,null,null,null,null,null,null,null,"","","",null,null,"",null,null,"","","",""]
[null,null,null,null,null,null,null,null,null,"","","",null,null,"",null,null,"","","",""]
[null,null,null,null,null,null,null,null,null,"","","",null,null,"",null,null,"","","",""]
[null,null,null,null,null,null,null,null,null,"","","",null,null,"",null,null,"","","",""]
[null,null,null,null,null,null,null,null,null,"","","",null,null,"",null,null,"","","",""]
[null,null,null,null,null,null,null,null,null,"","","",null,null,"",null,null,"","","",""]
[null,null,null,null,null,null,null,null,null,{"$f":"IFERROR(VLOOKUP(H961,A:B,2,FALSE),\"\")","v":""},"","",null,null,"",null,null,"","","",""]
[null,null,null,null,null,null,null,null,null,"",{"$f":"IF(J962=\"\",\"\",\"-\")","v":""},"",null,null,"",null,null,"","","",""]
[null,null,null,null,null,null,null,null,null,"","","",null,null,"",null,null,"",{"$f":"IF(J963=\"\",\"\",(IF(R963=1,3,IF(R963=\"x\",1,0))))","v":""},{"$f":"IF(J963=\"\",\"\",IF(R963=2,3,IF(R963=\"x\",1,0)))","v":""},{"$f":"IF(R963=\"\",\"\",1)","v":""}]
[null,null,null,null,null,null,null,null,null,"","","",null,null,"",null,null,"","","",""]
[null,null,null,null,null,null,null,null,null,"","","",null,null,"",null,null,"","","",""]
[null,null,null,null,null,null,null,null,null,"","","",null,null,"",null,null,"","","",""]
[null,null,null,null,null,null,null,null,null,"","","",null,null,"",null,null,"","","",""]
[null,null,null,null,null,null,null,null,null,"","","",null,null,"",null,null,"","","",""]
[null,null,null,null,null,null,null,null,null,"","","",null,null,"",null,null,"","","",""]
[null,null,null,null,null,null,null,null,null,"","","",null,null,"",null,null,"","","",""]
[null,null,null,null,null,null,null,null,null,"","","",null,null,"",null,null,"","","",""]
[null,null,null,null,null,null,null,null,null,"","","",null,null,{"$f":"IF(J972=\"\",\"\",\"-\")","v":""},null,null,{"$f":"IF(N972=\"\",\"\",IF(N972>P972,1,IF(N972<P972,2,\"x\")))","v":""},"","",""]
[null,null,null,null,null,null,null,null,null,"","","",null,null,"",null,null,"","","",""]
[null,null,null,null,null,null,null,null,null,"","","",null,null,"",null,null,"","","",""]
[null,null,null,null,null,null,null,null,null,"","","",null,null,"",null,null,"","","",""]
[null,null,null,null,null,null,null,null,null,"","","",null,null,"",null,null,"","","",""]
[null,null,null,null,null,null,null,null,null,"","","",null,null,"",null,null,"","","",""]
[null,null,null,null,null,null,null,null,null,"","","",null,null,"",null,null,"","","",""]
[null,null,null,null,null,null,null,null,null,"","","",null,null,"",null,null,"","","",""]
[null,null,null,null,null,null,null,null,null,"","","",null,null,"",null,null,"","","",""]
[null,null,null,null,null,null,null,null,null,"","","",null,null,"",null,null,"","","",""]
[null,null,null,null,null,null,null,null,null,"","","",null,null,"",null,null,"","","",""]
[null,null,null,null,null,null,null,null,null,"","","",null,null,"",null,null,"","","",""]
[null,null,null,null,null,null,null,null,null,"","","",null,null,"",null,null,"","","",""]
[null,null,null,null,null,null,null,null,null,"","","",null,null,"",null,null,"","","",""]
[null,null,null,null,null,null,null,null,null,"","",{"$f":"IFERROR(VLOOKUP(I986,A:B,2,FALSE),\"\")","v":""},null,null,"",null,null,"","","",""]
[null,null,null,null,null,null,null,null,null,"","","",null,null,"",null,null,"","","",""]
[null,null,null,null,null,null,null,null,null,"","","",null,null,"",null,null,"","","",""]
[null,null,null,null,null,null,null,null,null,"","","",null,null,"",null,null,"","","",""]
[null,null,null,null,null,null,null,null,null,"","","",null,null,"",null,null,"","","",""]
[null,null,null,null,null,null,null,null,null,"","","",null,null,"",null,null,"","","",""]
[null,null,null,null,null,null,null,null,null,"","","",null,null,"",null,null,"","","",""]
[null,null,null,null,null,null,null,null,null,"","","",null,null,"",null,null,"","","",""]
[null,null,null,null,null,null,null,null,null,"","","",null,null,"",null,null,"","","",""]
[null,null,null,null,null,null,null,null,null,"","","",null,null,"",null,null,"","","",""]
[null,null,null,null,null,null,null,null,null,"","","",null,null,"",null,null,"","","",""]
[null,null,null,null,null,null,null,null,null,"","","",null,null,"",null,null,"","","",""]
[null,null,null,null,null,null,null,null,null,"","","",null,null,"",null,null,"","","",""]
[null,null,null,null,null,null,null,null,null,"","","",null,null,"",null,null,"","","",""]
[null,null,null,null,null,null,null,null,null,"","","",null,null,"",null,null,"","","",""]

{"sheet":"Sheet2","index":1,"n_rows":0,"n_cols":0,"rows_kept":0,"cut":false,"hidden":false,"merged":[]}

{"sheet":"Sheet3","index":2,"n_rows":0,"n_cols":0,"rows_kept":0,"cut":false,"hidden":false,"merged":[]}